Cogmind - Beta 16 @@@ ROGUE MODE // 2025.10.28 @ 15:43:56 Player: Dosh Result: Establishing 0b11! Performance ------------- Evolutions (9) 4500 Regions Visited (41) 8200 Robots Destroyed (769) 3845 Value Destroyed (48484) 48484 Prototype IDs (385) 7700 Alien Tech Used (6) 1200 Bonus (48661) 48661 TOTAL SCORE: 122590 Bonus ------- High Alert Combat Kills 6385 Follower Combat Kills 10309 Destroyed Unchained 2000 Entered Garrisons 2400 Used RIF Installer 6000 Aligned with FarCom 300 Destroyed MAIN.C Guards 500 Met MAIN.C 5000 Destroyed MAIN.C Shell 5000 Destroyed MAIN.C 10000 Win 3000 Friendly Fire -2233 Cogmind --------- Core Integrity 424/1600 Matter 295/300 Energy 1107/1130 System Corruption 0% Temperature Cool (16) Movement Treading (143) Location 0b11 Command Parts ------- > --- POWER (4) -------- Quantum Reactor Improved Quantum Reactor Zero-point Reactor Zero-point Reactor > --- PROPULSION (6) --- Biometal Medium Treads Experimental Biometal Heavy Treads Advanced Heavy Siege Treads Experimental Biometal Medium Treads > --- UTILITY (13) ----- Experimental Heat Sink Advanced Cooling System (fused) Experimental Cooling System Huge Storage Unit Spectral Analyzer Experimental Core Analyzer Experimental Weapon Cycler SHELL Armor (fused) Graphene Brace Relay Coupler [Proto] (10) Experimental System Purifier > --- WEAPON (2) ------- Improved Potential Cannon > --- INVENTORY (25) --- Light Quantum Reactor Medium Treads Armored Heavy Treads Advanced Heavy Treads Advanced Heat Sink Quantum Capacitor Transdimensional Reconstructor Subatomic Replicator Compact HERF Cannon Omega Cannon Peak State ------------ > --- POWER ------------ Quantum Reactor Improved Quantum Reactor Zero-point Reactor Zero-point Reactor > --- PROPULSION ------- Biometal Medium Treads Experimental Biometal Heavy Treads Advanced Heavy Siege Treads Experimental Biometal Medium Treads > --- UTILITY ---------- Experimental Heat Sink Advanced Cooling System Experimental Cooling System Huge Storage Unit Spectral Analyzer Experimental Core Analyzer Experimental Weapon Cycler SHELL Armor Graphene Brace Relay Coupler [Proto] Experimental System Purifier > --- WEAPON ----------- Improved Potential Cannon > --- INVENTORY -------- Light Quantum Reactor Medium Treads Armored Heavy Treads Advanced Heavy Treads Advanced Heat Sink Quantum Capacitor Transdimensional Reconstructor Subatomic Replicator Compact HERF Cannon Omega Cannon [Rating: 240] Favorites ----------- Power Quantum Reactor Engine Deuterium Engine Power Core Improved Fusion Compressor Reactor Quantum Reactor Propulsion Light Treads Treads Light Treads Leg Multireflex Exoskeleton Utility Huge Storage Unit Device Experimental Cooling System Storage Huge Storage Unit Processor Experimental Core Analyzer Hackware Relay Coupler [NC] Protection SHELL Armor Artifact Phase Redirector Weapon Spread Laser Energy Gun Spread Laser Energy Cannon Compact HERF Cannon Ballistic Gun Light Assault Rifle Ballistic Cannon Omega Cannon Launcher Rocket Launcher Special Weapon Advanced Remote Datajack Slashing Weapon Scythe Special Melee Weapon Datajack Build | -11 -10 -10 -9 -9 -9 -8 -8 -8 -8 -8 -7 -7 -7 -7 -7 -7 -6 -6 -6 -6 -5 -5 -5 -5 -4 -4 -4 -4 -4 -4 -3 -3 -3 -3 -2 -2 -2 -1 -1 -1 -1 ------- Run | Yrd Mat Min Mat Min Exi Min Mat Gar Mat Gar Fac Was Fac Gar Fac Gar Fac Was Fac Gar Fac Gar Fac Gar Fac Was Fac Gar Fac Gar Res Qua Sec Gar Res Tes Gar Acc Gar Acc Com Slots Evolved 18 | . . . 2 . . . 2 . . . 2 . . . . . 2 . . . 2 . . . 2 . . . . . 2 . . . 2 . . 2 . . . Power 3 | . . . . . . . . . . . . . . . . . 1 . . . . . . . 1 . . . . . . . . . . . . 1 . . . Propulsion 4 | . . . 1 . . . . . . . 1 . . . . . . . . . 1 . . . 1 . . . . . . . . . . . . . . . . Utility 11 | . . . 1 . . . 2 . . . 1 . . . . . 1 . . . 1 . . . . . . . . . 2 . . . 2 . . 1 . . . Weapon . | . . . . . . . . . . . . . . . . . . . . . . . . . . . . . . . . . . . . . . . . . . Parts Attached 382 | 6 2 5 21 5 . 1 17 4 9 6 9 2 3 12 7 15 6 8 4 16 8 10 13 25 2 2 4 15 1 10 9 16 9 8 10 19 6 2 9 20 26 Power 53 | 1 . 1 3 . . . 1 . 1 2 1 . . 1 1 1 1 3 . 2 . 2 1 2 . . . 1 . 1 . 3 . 3 . 3 . . 2 7 9 Engine 13 | 1 . 1 2 . . . 1 . 1 1 1 . . 1 1 1 1 . . 1 . . . . . . . . . . . . . . . . . . . . . Core 3 | . . . 1 . . . . . . 1 . . . . . . . . . . . . . . . . . . . . . . . . . . . . . . 1 Reactor 37 | . . . . . . . . . . . . . . . . . . 3 . 1 . 2 1 2 . . . 1 . 1 . 3 . 3 . 3 . . 2 7 8 Propulsion 61 | 2 . . 10 1 . 1 5 1 2 . 4 . . 2 . 2 . 2 . 1 1 2 . 4 1 . . . . . 2 1 . . 4 1 1 . . 6 5 Treads 60 | 2 . . 10 1 . 1 5 1 2 . 4 . . 2 . 2 . 2 . 1 1 2 . 4 1 . . . . . 2 1 . . 4 1 1 . . 5 5 Leg 1 | . . . . . . . . . . . . . . . . . . . . . . . . . . . . . . . . . . . . . . . . 1 . Wheel . | . . . . . . . . . . . . . . . . . . . . . . . . . . . . . . . . . . . . . . . . . . Hover . | . . . . . . . . . . . . . . . . . . . . . . . . . . . . . . . . . . . . . . . . . . Flight . | . . . . . . . . . . . . . . . . . . . . . . . . . . . . . . . . . . . . . . . . . . Utility 198 | 1 1 3 4 2 . . 8 1 4 3 4 2 3 7 4 11 4 2 1 7 3 6 11 17 1 . 2 12 1 9 5 10 6 5 4 9 5 1 5 5 9 Device 56 | . . 2 1 . . . 3 . 2 . 3 . 2 1 . 2 2 2 1 1 . 1 3 4 . . 2 5 . 2 2 2 2 1 1 4 . . . . 5 Storage 9 | 1 1 1 1 . . . . . . . . . . . . . . . . . . . . . . . . . . . 1 . . . . 3 . . . . 1 Processor 8 | . . . . . . . . . . . . 2 . . . . . . . . . . . 1 . . . . . . . 1 . 1 . 1 . . . 1 1 Hackware 92 | . . . . . . . 1 . 1 2 . . 1 5 4 5 2 . . 5 3 4 6 10 1 . . 5 1 7 1 4 3 2 3 . 5 . 5 4 2 Protection 31 | . . . 2 2 . . 4 1 1 1 1 . . 1 . 4 . . . 1 . 1 2 2 . . . 2 . . 1 2 . 1 . 1 . 1 . . . Artifact 2 | . . . . . . . . . . . . . . . . . . . . . . . . . . . . . . . . 1 1 . . . . . . . . Weapon 70 | 2 1 1 4 2 . . 3 2 2 1 . . . 2 2 1 1 1 3 6 4 . 1 2 . 2 2 2 . . 2 2 3 . 2 6 . 1 2 2 3 Energy Gun 13 | 1 . . 3 2 . . 1 . 1 1 . . . 1 . . . 1 . . . . . . . . . . . . . . . . . . . . . . 2 Energy Cannon 26 | . . . . . . . . . . . . . . 1 1 1 . . 3 4 3 . . 1 . 2 . 1 . . 1 1 2 . . 3 . 1 . . 1 Ballistic Gun 4 | 1 1 . . . . . 1 . . . . . . . . . . . . . . . . . . . 1 . . . . . . . . . . . . . . Ballistic Cannon 2 | . . . . . . . . . . . . . . . . . . . . . . . . . . . . . . . . . . . . 2 . . . . . Launcher 5 | . . 1 1 . . . . 1 . . . . . . . . . . . 1 . . . . . . . 1 . . . . . . . . . . . . . Special Weapon 18 | . . . . . . . . . 1 . . . . . 1 . 1 . . 1 1 . 1 1 . . 1 . . . 1 1 1 . 2 1 . . 2 2 . Impact Weapon . | . . . . . . . . . . . . . . . . . . . . . . . . . . . . . . . . . . . . . . . . . . Slashing Weapon 1 | . . . . . . . 1 . . . . . . . . . . . . . . . . . . . . . . . . . . . . . . . . . . Piercing Weapon . | . . . . . . . . . . . . . . . . . . . . . . . . . . . . . . . . . . . . . . . . . . Special Melee Weapon 1 | . . . . . . . . 1 . . . . . . . . . . . . . . . . . . . . . . . . . . . . . . . . . Unidentified Prototypes 26 | . . 1 1 . . . 1 . . . 1 . . . . . . 1 . 1 1 . 1 . . . 1 . . . . 1 4 . 1 9 . . . 2 . Corrupted Parts 8 | . . 1 . . . . . . . . . . . . . . . . . . . . . . . . . 2 . 2 . . . 2 . 1 . . . . . System Corruption 53 | . . 1 . . . . . . . . . . . . . . . . . . . . . . . . . 12 . 18 . . . 15 . 7 . . . . . Parts Lost 86 | . 2 . 2 3 . . 3 . 1 3 3 . . 5 1 7 . . . 1 1 4 2 8 . . 1 1 . 3 . 7 2 2 3 . 1 . 2 11 7 Power 21 | . 1 . 1 . . . . . . 1 . . . . 1 1 . . . 1 . 1 1 . . . . . . . . 1 . 1 2 . 1 . 2 5 1 Propulsion 13 | . . . . . . . . . . . 2 . . . . 2 . . . . . 1 . 2 . . . . . . . 1 . . 1 . . . . 2 2 Utility 36 | . . . . 1 . . 2 . 1 1 1 . . 3 . 4 . . . . . 1 1 3 . . 1 1 . 3 . 5 1 1 . . . . . 3 3 Weapon 16 | . 1 . 1 2 . . 1 . . 1 . . . 2 . . . . . . 1 1 . 3 . . . . . . . . 1 . . . . . . 1 1 Highest Loss Streak 5 | . 2 . 1 3 . . 1 . 1 2 2 . . 1 1 2 . . . 1 1 1 1 5 . . 1 1 . 2 . 3 1 2 1 . 1 . 1 3 3 To Critical Strikes 6 | . . . . . . . . . . . . . . . . 1 . . . . . . . 2 . . . . . . . . . . . . . . . 3 . Average Backups 20 | . 3 11 18 18 18 19 18 19 22 23 24 24 23 23 21 19 21 21 20 20 21 22 21 20 21 22 23 23 22 22 23 23 22 22 21 22 22 20 22 21 11 Power 1 | . . . 1 1 1 1 1 1 1 1 1 2 2 2 1 . . . 2 2 2 1 . . 1 1 1 1 2 2 2 1 2 2 1 1 1 . . . 1 Propulsion 1 | . . 5 4 4 4 3 4 4 4 4 1 . . . 1 . 1 1 2 2 2 1 2 1 1 1 1 1 1 1 1 1 . 1 1 1 . . . . 1 Utility 10 | . 1 3 5 6 6 7 5 6 10 12 15 15 14 15 13 13 15 13 12 12 12 13 13 13 14 14 14 15 14 15 15 15 11 10 10 9 11 12 14 11 3 Weapon 4 | . . 3 6 5 5 6 6 6 5 4 5 6 6 4 4 3 4 3 3 3 3 4 3 3 4 5 5 4 4 3 3 3 4 3 3 4 4 3 3 3 2 Tool/Special . | . . . . . . . . . . . . . . . . . . . . . . . . . . . . . . . . . . . . . . . . . . Unused Backups 89 | . . . 4 . 1 . 2 2 . . . . . 4 . . 1 3 1 5 . 2 . 8 . . . 9 . 5 1 7 1 1 2 8 3 . 5 1 13 Power 8 | . . . 2 . . . . . . . . . . . . . . . . . . . . . . . . . . . . 1 . . . 3 . . . . 2 Propulsion 19 | . . . . . . . 2 1 . . . . . 1 . . . 2 . 1 . . . 7 . . . . . . 1 1 . . 2 . . . . . 1 Utility 43 | . . . . . 1 . . 1 . . . . . 3 . . 1 1 . 2 . 2 . 1 . . . 6 . 4 . 3 . 1 . 5 3 . 5 . 4 Weapon 13 | . . . 2 . . . . . . . . . . . . . . . 1 2 . . . . . . . 3 . 1 . . . . . . . . . 1 3 Tool/Special 6 | . . . . . . . . . . . . . . . . . . . . . . . . . . . . . . . . 2 1 . . . . . . . 3 Average Slot Usage (%) 84 | . 78 84 96 99 100 100 99 100 97 100 98 94 99 93 80 82 79 78 80 79 77 81 83 85 83 84 83 83 77 81 79 79 79 77 77 74 72 75 74 75 70 Engine 3 | . 7 13 10 11 11 11 9 9 9 8 6 7 7 7 6 7 13 4 . 3 5 3 . . . . . . . . . . . . . . . . . . . Reactor 8 | . . . . . . . . . . . . . . . . . . 8 13 8 5 7 10 11 15 15 15 15 15 15 14 14 14 14 13 13 13 16 14 14 13 Treads 18 | . 28 28 33 33 33 33 27 27 27 27 29 30 30 24 15 14 13 13 13 13 14 16 17 16 15 15 15 15 15 14 14 13 14 14 13 13 13 12 12 13 12 Device 14 | . . . 11 11 11 11 15 18 14 17 16 4 14 9 3 9 12 11 13 17 16 16 16 13 14 15 16 20 15 20 18 19 16 17 15 17 17 16 12 12 18 Storage 6 | . 14 14 11 11 11 11 9 9 9 9 7 7 7 7 7 7 6 6 6 6 5 5 5 5 5 5 5 5 5 5 4 4 4 4 4 4 4 4 4 4 3 Processor 1 | . . . . . . . . . . . . 8 3 . . . . . . . . . . . . . . . . . . 2 4 4 4 4 4 4 4 4 4 Hackware 9 | . . . . . . . 5 9 9 9 7 3 3 18 28 14 12 13 12 10 10 11 13 15 15 15 13 7 9 10 12 8 13 9 13 9 7 8 14 14 8 Protection 6 | . . . 7 10 11 11 15 9 12 9 12 15 15 8 2 10 7 6 6 4 5 4 5 6 5 5 5 7 5 2 5 5 1 2 4 4 4 7 4 4 4 Energy Gun 4 | . 7 . 19 18 22 21 17 11 14 13 11 12 15 7 5 . . . . . . . . . . . . . . . . . . . . . . . . . . Energy Cannon 4 | . . . . . . . . . . . . . . 3 4 12 11 11 6 11 9 8 7 4 5 7 7 7 6 8 6 4 3 4 4 3 4 4 4 3 2 Special Weapon 1 | . . . . . . . . . . . . 1 . . 4 1 1 . 5 1 1 2 2 5 5 2 2 2 3 1 2 3 3 3 4 3 3 3 3 3 1 Peak Build Rating 240 | 6 7 16 21 22 24 24 32 36 46 39 54 57 49 70 68 76 84 93 91 101 108 108 105 116 135 140 150 155 157 157 170 184 183 182 197 223 219 227 235 234 240 Average Rating 116 | 4 5 7 19 21 22 24 29 32 37 36 50 48 48 55 63 67 82 86 89 89 102 101 98 102 133 137 140 149 151 150 165 173 175 177 191 206 213 226 229 221 198 On Entrance 101 | . 6 6 11 21 21 24 24 32 35 37 39 54 47 48 68 65 75 82 89 91 94 108 98 97 115 134 140 149 152 157 151 168 177 177 182 197 219 215 226 234 196 Avg Prop Armor Cover (%) 5 | . . . . . . . . 6 . . . . . . . . . . . . . . . . . . . . . . . . . . 6 . . . . . 5 Naked Turns . | . . . . . . . . . . . . . . . . . . . . . . . . . . . . . . . . . . . . . . . . . . Heaviest Build 223 | 11 26 27 59 62 60 60 72 112 116 114 117 116 120 121 118 135 150 150 150 153 157 163 163 173 183 195 197 210 210 211 205 203 173 173 185 198 199 220 218 223 217 Greatest Support 245 | 40 40 40 66 66 66 66 66 62 62 62 84 84 84 150 150 150 150 150 145 150 173 173 168 175 210 210 210 210 210 210 235 240 240 240 245 235 245 245 245 245 240 Greatest Overweight (x) 1 | . . . . . . . 1 1 1 1 1 1 1 1 1 1 . 1 1 1 . . . 1 . . . . . 1 . . . . 1 . . . . 1 1 Average Overweight (x) . | . . . . . . . . 1 1 1 1 1 1 . . . . . . . . . . . . . . . . . . . . . . . . . . . . Largest Inventory Capacity 25 | 8 15 25 20 20 20 20 20 25 25 25 25 25 25 25 25 25 25 25 25 25 25 25 25 25 25 25 25 25 25 25 25 25 25 25 25 25 25 25 25 25 25 Average Capacity 23 | 7 13 15 19 20 20 20 20 23 25 25 25 25 25 25 25 25 25 25 25 25 25 25 25 25 25 25 25 25 25 25 25 25 25 25 25 25 25 25 25 25 20 Most Carried 25 | . 9 13 20 20 20 20 20 25 25 25 25 25 24 25 25 25 25 25 25 25 25 25 25 25 24 25 25 25 25 25 25 25 25 25 25 25 25 24 25 25 25 Average Carried 21 | . 3 11 18 18 18 19 19 20 22 23 24 24 23 24 23 20 23 24 24 23 24 23 21 21 22 23 24 24 24 24 24 24 23 24 23 24 24 22 24 23 14 Final Capacity 25 | 8 15 15 20 20 20 20 20 25 25 25 25 25 25 25 25 25 25 25 25 25 25 25 25 25 25 25 25 25 25 25 25 25 25 25 25 25 25 25 25 25 25 Final Carried 25 | . 9 12 19 18 20 20 20 24 25 25 25 24 23 25 23 25 25 25 24 25 23 25 23 25 22 25 25 25 25 25 25 23 23 24 25 25 25 22 25 17 14 Class Distribution -------------------- 58% | Botlord-Mutant 11% | Mutant 10% | Bothacker-Mutant 7% | Scientist-Mutant 7% | Scavenger-Mutant 3% | Generator-Mutant Dominant Class ---------------- Mutant | -10/Materials Mutant | -10/Mines Mutant | -9/Materials Mutant | -9/Mines Mutant | -9/Exiles Mutant | -8/Mines Scavenger-Mutant | -8/Materials Scientist-Mutant | -8/Garrison Scientist-Mutant | -8/Materials Bothacker-Mutant | -8/Garrison Bothacker-Mutant | -7/Factory Bothacker-Mutant | -7/Waste Bothacker-Mutant | -7/Factory Bothacker-Mutant | -7/Garrison Bothacker-Mutant | -7/Factory Botlord-Mutant | -7/Garrison Botlord-Mutant | -6/Factory Botlord-Mutant | -6/Waste Botlord-Mutant | -6/Factory Botlord-Mutant | -6/Garrison Botlord-Mutant | -5/Factory Botlord-Mutant | -5/Garrison Botlord-Mutant | -5/Factory Botlord-Mutant | -5/Garrison Botlord-Mutant | -4/Factory Botlord-Mutant | -4/Waste Botlord-Mutant | -4/Factory Botlord-Mutant | -4/Garrison Botlord-Mutant | -4/Factory Botlord-Mutant | -4/Garrison Botlord-Mutant | -3/Research Botlord-Mutant | -3/Quarantine Botlord-Mutant | -3/Section 7 Botlord-Mutant | -3/Garrison Botlord-Mutant | -2/Research Scavenger-Mutant | -2/Testing Botlord-Mutant | -2/Garrison Botlord-Mutant | -1/Access Botlord-Mutant | -1/Garrison Botlord-Mutant | -1/Access Generator-Mutant | -1/Command Resources | -11 -10 -10 -9 -9 -9 -8 -8 -8 -8 -8 -7 -7 -7 -7 -7 -7 -6 -6 -6 -6 -5 -5 -5 -5 -4 -4 -4 -4 -4 -4 -3 -3 -3 -3 -2 -2 -2 -1 -1 -1 -1 ----------- Run | Yrd Mat Min Mat Min Exi Min Mat Gar Mat Gar Fac Was Fac Gar Fac Gar Fac Was Fac Gar Fac Gar Fac Gar Fac Was Fac Gar Fac Gar Res Qua Sec Gar Res Tes Gar Acc Gar Acc Com Matter Collected 16265 | 174 165 55 417 87 . 47 204 303 189 351 204 130 230 645 273 729 206 140 50 467 147 656 480 840 57 92 52 636 132 808 493 542 772 376 510 428 391 100 819 1212 1656 Remotely . | . . . . . . . . . . . . . . . . . . . . . . . . . . . . . . . . . . . . . . . . . . Salvage Created 41310 | . 383 20 1723 314 . 65 1091 245 1086 526 316 407 230 1324 190 1337 388 1567 . 1471 262 596 654 892 . 60 309 1092 166 1762 616 2235 2244 1313 2425 1913 2021 875 1700 3927 3565 Parts 1837 | . 22 7 96 13 . 5 71 27 52 24 15 1 6 45 11 50 14 25 . 51 4 26 33 58 . 5 11 46 12 60 31 137 112 40 139 88 77 42 72 221 88 Haulers Intercepted 16 | . 2 . 5 . . . 4 . 3 . 1 . . . . . . . . . . . . . . . . . . . . . 1 . . . . . . . . Recyclers Shooed 10 | . . . 1 . . . 1 . . . . . 2 . . . . . . . . . . . . . . . . . 1 . . . . . . . . 2 3 Parts Field Recycled . | . . . . . . . . . . . . . . . . . . . . . . . . . . . . . . . . . . . . . . . . . . Retrieved Matter . | . . . . . . . . . . . . . . . . . . . . . . . . . . . . . . . . . . . . . . . . . . Parts Self-Destructed . | . . . . . . . . . . . . . . . . . . . . . . . . . . . . . . . . . . . . . . . . . . Prevented . | . . . . . . . . . . . . . . . . . . . . . . . . . . . . . . . . . . . . . . . . . . Parts Restored . | . . . . . . . . . . . . . . . . . . . . . . . . . . . . . . . . . . . . . . . . . . Kills | -11 -10 -10 -9 -9 -9 -8 -8 -8 -8 -8 -7 -7 -7 -7 -7 -7 -6 -6 -6 -6 -5 -5 -5 -5 -4 -4 -4 -4 -4 -4 -3 -3 -3 -3 -2 -2 -2 -1 -1 -1 -1 ------- Run | Yrd Mat Min Mat Min Exi Min Mat Gar Mat Gar Fac Was Fac Gar Fac Gar Fac Was Fac Gar Fac Gar Fac Gar Fac Was Fac Gar Fac Gar Res Qua Sec Gar Res Tes Gar Acc Gar Acc Com Combat Hostiles Destroyed 646 | . 7 3 46 12 . 3 28 26 26 22 12 3 2 15 10 31 10 6 . 21 3 16 12 25 . . 1 15 2 28 7 28 28 18 29 20 25 10 21 55 20 Melee 3 | . . . . . . . . . . . . . . . . . . . . . . . . . . . . . . 1 . . . . . . . . . . 2 Guns 155 | . 7 1 31 9 . . 28 12 26 17 7 3 2 11 . . . . . . . . . . . . . . . . . . . . . . . . . . 1 Cannons 269 | . . . . . . . . . . . . . . 1 4 25 6 5 . 18 1 8 12 11 . . 1 6 . 14 5 17 16 10 20 14 16 3 10 38 8 AOE 105 | . . 2 15 3 . 2 . 14 . 5 5 . . 3 6 5 4 . . 3 . 6 . 13 . . . . 2 4 . 1 . . . 2 . . . 5 5 Classes Destroyed 27 | . 2 1 7 2 . . 3 1 1 1 . 1 . 1 1 1 . . . . . 1 . . . . . . . . . 1 . . . 1 . . . 1 1 Worker 32 | . . . . 2 . 1 2 . 1 . 1 . . . 2 . . . . . . . 2 . . . 2 . . . 2 4 . . 2 1 . . . 3 7 Builder 18 | . . . 3 2 . . 1 . . . 1 . 1 . 1 . . . . . . . . . . . 1 . 3 . . 2 . . 1 . . . . 2 . Tunneler 4 | . . . . . . . . . 1 . . . . . . . . . . . . . . . . . . . 1 . . . . . 1 . . . . 1 . Hauler 16 | . 2 . 5 . . . 4 . 3 . 1 . . . . . . . . . . . . . . . . . . . . . 1 . . . . . . . . Recycler 19 | . . . 2 2 . . 1 . 2 . . . 2 . . . . . . . . . . . . . 1 . 1 . . 1 . . . . . . . 2 5 Mechanic 3 | . . . . . . . 1 . 1 . . 1 . . . . . . . . . . . . . . . . . . . . . . . . . . . . . Operator 7 | . . . 2 . . . . . . 2 . . . . . . . . . . . . . . . . . . . . . . 1 . . . . . . 1 1 Drone 10 | . . . . . . . . . . . . . . . . . . . . . . . . . . . . . . . . . . . . . . . . 10 . Watcher 16 | . . . . . . . 4 1 4 . . . . . . . . . . . . . . 4 . . . . . . 2 . . . . 1 . . . . . Swarmer 121 | . . 3 4 6 . . 8 19 13 4 3 . . . . 7 4 . . 4 . 7 . 15 . . . 2 2 5 . . 1 4 1 . 6 1 2 . . Cutter 6 | . . . . . . . . . . 1 . . . . . . . . . . . . . . . . . 1 . . . . . . . . 2 . . 2 . Grunt 167 | . 7 . 29 2 . 3 12 4 7 5 3 . . 8 1 15 5 . . 6 2 6 5 3 . . . 5 . 11 . 2 4 1 1 5 5 . 3 1 6 Brawler 9 | . . . 1 . . . 1 . . 3 . . . 1 . . . . . . 1 1 . . . . . 1 . . . . . . . . . . . . . Duelist 15 | . . . 2 . . . . . . 2 . . . 3 . 1 . . . 3 . . 2 . . . . . . . . 1 . . . . . . . . 1 Protector 1 | . . . 1 . . . . . . . . . . . . . . . . . . . . . . . . . . . . . . . . . . . . . . Researcher 3 | . . . . . . . . . . . . . . . . . . . . . . . . . . . . . . . . . . . . 3 . . . . . Sentry 65 | . . . 9 2 . . 5 1 5 2 3 . 1 1 . 5 . . . 1 . . . . . . . 1 . . . . 3 7 4 2 5 3 2 2 1 Demolisher 3 | . . . . 2 . . . . . . . . . . . . . . . . . 1 . . . . . . . . . . . . . . . . . . . Specialist 21 | . . . . . . . . . . . . . . 1 . . . . . 3 . . . 1 . . . 2 . . . 6 . . 2 3 . . . 3 . Hunter 66 | . . . . . . . 2 . 1 . 1 . . . . . . . . 2 1 . . . . . . 1 . 8 3 2 6 4 6 . 6 4 7 10 2 Programmer 129 | . . . . . . . . 2 . 5 2 . 1 1 2 2 1 . . 1 . . 5 4 . . . . . 5 4 16 10 1 15 10 2 2 6 26 6 Heavy 1 | . . . . . . . . . . . . . . . . . . . . . . . . . . . . . . . . . . . . . . . . . 1 Behemoth 9 | . . . . . . . . . . . . . . . . 2 . . . . . . . 2 . . . . . . . . 1 1 1 . 1 . 1 . . Compactor 9 | . . . . . . . . . . . . 3 . . . . . 6 . . . . . . . . . . . . . . . . . . . . . . . S7 Guard 1 | . . . . . . . . . . . . . . . . . . . . . . . . . . . . . . . . . 1 . . . . . . . . Combat Programmer 1 | . . . . . . . . . . . . . . . . . . . . . . . . . . . . . . . . . . . . . . . . . 1 Executioner 6 | . . . . . . . . . . . . . . . . . . . . . . 2 . . . . . 2 . . . . 2 . . . . . . . . Alpha 7 1 | . . . . . . . . . . . . . . . . . . . . . . . . . . . . . . . . 1 . . . . . . . . . Assembled 7 | . . . . . . . . . . . . . . . 7 . . . . . . . . . . . . . . . . . . . . . . . . . . Wasp 1 | . . . . . . . . . . . . . . . . . . . . . . . . . . . 1 . . . . . . . . . . . . . . Martyr 3 | . . . . . . . . . . . . . . . . . . 2 . . . . . . . 1 . . . . . . . . . . . . . . . Guerrilla 2 | . . . . . . . . . . . . . . . . . . . . 1 . . . . . . . . . . . . . . . . . . 1 . . Best Kill Streak 11 | . 3 2 8 4 . 4 9 8 11 4 5 1 3 4 7 5 4 1 . 5 1 3 4 8 . . 5 4 5 8 5 5 4 5 4 6 6 4 4 5 5 Combat Bots Only 9 | . 2 2 7 3 . 3 8 8 9 4 4 1 1 4 7 5 4 1 . 5 1 3 3 8 . . 1 4 2 8 2 4 3 5 4 6 6 4 5 5 3 Max Kills in Single Turn 5 | . 1 2 3 3 . 2 2 3 2 2 2 1 1 1 2 2 4 1 . 1 1 3 1 4 . 1 2 1 5 4 1 1 2 1 1 2 1 1 1 4 3 Gunslinging 1 | . . . . . . . . . 1 . . . . . . . . . . . . . . . . . . . . . . . . . . . . . . . . Exploded 4 | . . 2 3 2 . 1 . 3 . 2 2 . . 1 2 2 4 . . 1 . 3 . 4 . . . . 2 4 . 1 . . . 2 . . . 3 2 Melee 1 | . . . . . . . . . . . . . . . . . . . . . . . . . . . . . . 1 . . . . . . . . . . 1 Uniques/NPCs Destroyed 4 | . . . . . . . . . . . . . . . . . . . . . . . . . . . 1 . . . . . . . . . . . . 1 2 DW-4LL (-4/Factory) GL-D0S (-1/Access) MAIN.C Shell (-1/Command) MAIN.C (-1/Command) Combat | -11 -10 -10 -9 -9 -9 -8 -8 -8 -8 -8 -7 -7 -7 -7 -7 -7 -6 -6 -6 -6 -5 -5 -5 -5 -4 -4 -4 -4 -4 -4 -3 -3 -3 -3 -2 -2 -2 -1 -1 -1 -1 -------- Run | Yrd Mat Min Mat Min Exi Min Mat Gar Mat Gar Fac Was Fac Gar Fac Gar Fac Was Fac Gar Fac Gar Fac Gar Fac Was Fac Gar Fac Gar Res Qua Sec Gar Res Tes Gar Acc Gar Acc Com Hostile Shots Fired 4285 | . 36 18 106 34 . 13 89 72 90 89 141 . 33 169 76 250 38 . 2 168 23 116 65 197 4 . 15 117 18 227 45 226 217 119 159 74 102 52 165 641 279 Missed 1277 | . 13 6 39 13 . 7 26 25 23 32 38 . 13 43 29 93 10 . . 40 7 27 10 62 1 . 8 38 4 76 12 53 74 33 46 17 38 18 45 181 77 Hits 3008 | . 23 12 67 21 . 6 63 47 67 57 103 . 20 126 47 157 28 . 2 128 16 89 55 135 3 . 7 79 14 151 33 173 143 86 113 57 64 34 120 460 202 Melee 51 | . . . . . . . . . . 2 . . . 10 . 2 . . . 13 1 . 15 . . . . 3 . . . . . . . . 2 . . 2 1 Projectile 2957 | . 23 12 67 21 . 6 63 47 67 55 103 . 20 116 47 155 28 . 2 115 15 89 40 135 3 . 7 76 14 151 33 173 143 86 113 57 62 34 120 458 201 AOE 29 | . . . . 9 . . . . . 2 . . . . . . . . . 2 . 4 . . . . . 1 . 1 . . . . . . . . . 8 2 Critical Strikes 191 | . . . 2 . . 1 . 3 2 2 3 . . 5 . 8 1 . . 6 . 3 5 7 . . . 7 1 10 3 9 8 6 7 3 5 . . 73 11 Actively Blocked 18 | . . . . . . . . . . . . . . . . . . . . . . . . . . . . . . 5 . . . 4 4 . . . . . 5 Part Disruptions 23 | . . . . . . . . . . . . . . . 4 . . . . 1 . . 1 . . . . . . . . 1 . 1 1 . . . . 5 9 Actively Blocked 1 | . . . . . . . . . . . . . . . . . . . . . . . . . . . . . . . . . . . . . . . . 1 . Damage Taken 44764 | . 333 97 895 515 . 93 729 503 698 808 968 . 141 1456 581 2006 465 . 64 2021 231 1422 1154 2080 34 . 127 861 133 1689 402 2145 1559 1559 2252 776 817 413 1426 7637 5674 Core 3382 | . 45 21 118 95 . . 61 104 71 101 56 . 14 209 90 51 56 . . 71 38 120 146 234 . . . 77 7 79 22 139 163 178 132 22 12 29 83 466 272 Absorbed by Shields 15917 | . . . . . . . 161 142 192 44 68 . 58 242 . 187 169 . . 20 71 668 378 838 37 . 130 852 142 1210 417 1174 1613 589 195 807 851 429 1087 2046 1100 Reduced by Siege Mode 682 | . . . . . . . . . . . . . . . . 34 . . . 17 . . . 23 . . . . . 163 . 196 10 68 87 3 7 . 55 . 19 Redirected to Shielding 161 | . . . . . . . . . . . . . . . . . . . . . . . . . . . . . . . . . . . . . . 34 . 6 121 Ignored by Resistances 2373 | . . . . . . . . . . . . . . . . . . . . . . . . . . . . . . . . . 118 32 259 211 31 44 76 1259 343 Regen/Repaired (Parts) 15509 | . . . . . . . . . 25 . 59 . . . 264 . . 11 . 76 . . 339 . . 136 188 15 51 . . . 2388 467 1967 505 410 180 582 4963 2883 Core Remaining (%) 62 | 100 . 73 . . . 46 . . . 38 . . . . . 40 . . . 85 . . . 46 . . . . . 85 . . . 59 . . 88 . . . 26 Volleys Fired 3349 | . 46 6 89 22 . 6 77 38 45 46 37 78 11 64 44 94 27 79 7 108 27 89 56 126 7 12 11 105 22 107 62 142 186 118 181 122 150 48 179 370 305 Largest 2 | . 2 2 2 2 . 2 2 2 2 2 2 2 2 2 2 2 2 2 1 2 2 2 2 1 1 2 2 2 2 2 1 1 2 2 1 1 1 1 1 1 1 Hottest 240 | . 60 50 130 130 . 130 130 130 130 130 130 130 130 150 150 150 150 150 85 210 210 210 210 105 105 240 240 240 240 240 120 120 214 207 120 120 120 120 120 200 200 Shots Fired 4265 | . 92 12 168 41 . 9 154 69 145 89 64 134 24 101 51 156 44 151 7 166 31 132 80 129 7 19 22 144 25 170 62 144 185 115 179 124 149 48 179 361 283 Gun 1171 | . 92 10 156 39 . 5 154 58 138 81 53 126 24 62 5 . . . . . . . . . . . . . . . . . . . . . . . . . 168 Cannon 2449 | . . . . . . . . . . . . . . 18 23 138 34 144 2 154 20 104 53 88 6 14 22 118 10 145 47 121 159 100 149 109 133 41 111 297 89 Launcher 75 | . . 2 12 2 . 4 . 11 . 8 8 . . 6 3 4 1 . . 2 . 5 . 5 . . . . 1 1 . . . . . . . . . . . Special 570 | . . . . . . . . . 7 . 3 8 . 15 20 14 9 7 5 10 11 23 27 36 1 5 . 26 14 24 15 23 26 15 30 15 16 7 68 64 26 Kinetic 116 | . 77 10 . . . . . . . . . . . . . . . . . . . . . . . . . . . . . . . . . . . . . 2 27 Thermal 2628 | . . . 156 39 . 5 154 58 138 81 53 126 24 80 28 138 34 144 2 154 17 104 53 57 6 14 22 15 10 43 26 61 84 38 106 56 36 6 48 212 200 Explosive 75 | . . 2 12 2 . 4 . 11 . 8 8 . . 6 3 4 1 . . 2 . 5 . 5 . . . . 1 1 . . . . . . . . . . . Electromagnetic 876 | . 15 . . . . . . . . . . . . . . . . . . . 3 . . 31 . . . 103 . 102 21 60 75 62 43 53 97 35 63 83 30 Robot Hit Streak 45 | . 8 3 30 14 . 17 22 19 30 20 45 27 8 20 6 28 8 20 2 13 14 23 16 11 1 11 7 13 5 11 8 18 18 24 22 19 11 11 25 15 21 Robot Miss Streak 8 | . 4 5 7 3 . 2 5 3 6 8 6 4 5 4 7 3 3 3 2 6 1 2 2 2 . 3 2 5 3 4 2 3 4 3 2 3 5 4 2 5 3 Penetration Max . | . . . . . . . . . . . . . . . . . . . . . . . . . . . . . . . . . . . . . . . . . . Secondary Targets 11 | . . . 2 . . . 2 . 2 2 . 1 . 2 . . . . . . . . . . . . . . . . . . . . . . . . . . . Max Gunslinging Chain 1 | . . . 1 . . . 1 . 1 1 . 1 . 1 . . . . . . . . . . . . . . . . . . . . . . . . . . . Capacitor 1468 | . . . . . . . . . . . . . . . . . . . . . . . . . . . . . . . 47 121 157 98 149 109 133 41 111 294 208 Autonomous 63 | . . . . . . . . . 63 . . . . . . . . . . . . . . . . . . . . . . . . . . . . . . . . Shots Hit Robots 2953 | . 59 4 148 37 . 7 142 55 121 76 58 132 21 114 27 91 27 124 2 118 24 76 57 79 1 14 15 73 14 86 41 109 111 77 111 87 73 34 115 199 194 Core Hits 1868 | . 23 3 225 53 . 14 230 88 104 98 79 95 28 120 17 43 14 25 2 66 4 29 20 35 . 3 7 16 6 24 9 32 40 29 37 32 33 12 25 62 86 Critical Kills 23 | . . . . . . . . . . . . . . . . 1 . 1 . 1 1 2 . 1 . . . . 1 . . 1 3 . 2 3 1 1 2 2 . Critical Parts Destroyed . | . . . . . . . . . . . . . . . . . . . . . . . . . . . . . . . . . . . . . . . . . . Critical Strikes 34 | . . . . . . . . . . . . . . 1 . 1 . 1 . 1 1 2 . 1 . . . . 1 1 . 1 3 . 3 4 1 1 3 3 5 Burn 4 | . . . . . . . . . . . . . . . . . . . . . . . . . . . . . . . . . . . . . . . . . 4 Meltdown 23 | . . . . . . . . . . . . . . . . 1 . 1 . 1 1 2 . 1 . . . . 1 . . 1 3 . 2 3 1 1 2 2 . Blast 1 | . . . . . . . . . . . . . . . . . . . . . . . . . . . . . . . . . . . . . . . . 1 . Corrupt 5 | . . . . . . . . . . . . . . . . . . . . . . . . . . . . . . 1 . . . . 1 1 . . 1 . 1 Sever 1 | . . . . . . . . . . . . . . 1 . . . . . . . . . . . . . . . . . . . . . . . . . . . Melee Attacks 109 | . . . . . . . 10 8 6 21 4 . . 53 . 7 . . . . . . . . . . . . . . . . . . . . . . . . . Impact . | . . . . . . . . . . . . . . . . . . . . . . . . . . . . . . . . . . . . . . . . . . Slashing 109 | . . . . . . . 10 8 6 21 4 . . 53 . 7 . . . . . . . . . . . . . . . . . . . . . . . . . Piercing . | . . . . . . . . . . . . . . . . . . . . . . . . . . . . . . . . . . . . . . . . . . Sneak Attacks 3 | . . . . . . . 3 . . . . . . . . . . . . . . . . . . . . . . . . . . . . . . . . . . Combat Hostiles . | . . . . . . . . . . . . . . . . . . . . . . . . . . . . . . . . . . . . . . . . . . Follow-up Attacks . | . . . . . . . . . . . . . . . . . . . . . . . . . . . . . . . . . . . . . . . . . . Damage Inflicted 98787 | 3 727 184 3275 904 . 415 2478 2132 2672 1977 1549 2649 336 3679 777 2779 779 3645 35 4344 578 2879 1744 3313 7 546 989 2045 781 3760 1544 4052 3804 2576 4284 3505 2886 1096 2978 9220 10861 Guns 18495 | . 559 39 2070 561 . 60 2216 869 2644 1194 784 2591 302 914 43 . . . . . . . . . . . . . . . . . . . . . . . . . 3649 Cannons 62325 | . . . . . . . . . . . . . . 242 259 2440 554 3645 32 4089 520 2086 1519 1910 . 546 767 2045 212 3268 1469 3738 3767 2576 3939 3147 2886 1096 2978 7882 4713 Explosions 13761 | . 159 139 1123 204 . 313 . 1263 . 783 699 . . 415 398 339 225 . . 255 . 793 127 1309 . . 210 . 502 475 . 173 . . 185 243 . . . 1081 2348 Melee 2304 | . . . . . . . 196 . . . . . . 2108 . . . . . . . . . . . . . . . . . . . . . . . . . . . Ramming 1902 | 3 9 6 82 139 . 42 66 . 28 . 66 58 34 . 77 . . . 3 . 58 . 98 94 7 . 12 . 67 17 75 141 37 . 160 115 . . . 257 151 Kinetic 2449 | . 413 39 . . . . . . . . . . . . . . . . . . . . . . . . . . . . . . . . . . . . . 233 1764 Thermal 61981 | . 159 . 2070 561 . 60 2216 869 2644 1194 784 2591 302 1156 302 2440 554 3645 32 4089 404 2086 1519 1625 . 546 767 224 212 1370 805 2286 1698 1002 2783 1970 833 214 1469 6453 8047 Explosive 9377 | . . 139 1123 204 . 313 . 1263 . 783 699 . . 415 398 339 225 . . 255 . 793 . 1241 . . 210 . 502 475 . . . . . . . . . . . Electromagnetic 20774 | . 146 . . . . . . . . . . . . . . . . . . . 116 . 127 353 . . . 1821 . 1898 664 1625 2069 1574 1341 1420 2053 882 1509 2277 899 Impact . | . . . . . . . . . . . . . . . . . . . . . . . . . . . . . . . . . . . . . . . . . . Slashing 2304 | . . . . . . . 196 . . . . . . 2108 . . . . . . . . . . . . . . . . . . . . . . . . . . . Piercing . | . . . . . . . . . . . . . . . . . . . . . . . . . . . . . . . . . . . . . . . . . . Highest Corruption 65 | . . 1 . . . . . . . 2 4 34 35 37 39 41 . . . 2 . . 9 16 . . 2 14 14 41 4 14 23 41 6 18 19 . 4 48 65 Average Corruption 21 | . . 1 . . . . . . . 1 1 16 34 36 37 40 . . . 1 . . 6 14 . . 2 3 14 25 3 11 19 29 3 11 18 . 3 20 54 Corruption Purged 65 | . . . . . . . . . . . . . . . . . . . . . . . . . . . . . . . . . . . . . . . . . 65 Corruption Blocked 9 | . . . . . . . . . . . . 9 . . . . . . . . . . . . . . . . . . . . . . . . . . . . . Effects 1521 | . . . . . . . . . . 11 18 23 19 98 54 96 . . . 8 . . 28 84 . . 3 35 18 90 18 76 122 61 32 65 67 . 31 166 298 Message Errors 338 | . . . . . . . . . . 2 5 9 5 22 10 26 . . . 2 . . 5 16 . . 1 10 1 16 3 14 35 13 7 17 12 . 6 35 66 Matter Fused 326 | . . . . . . . . . . 5 4 2 2 19 17 13 . . . 1 . . 6 20 . . 1 8 8 19 4 22 19 13 4 19 15 . 10 40 55 Heat Flow Errors 168 | . . . . . . . . . . 2 2 1 4 8 6 14 . . . 1 . . 2 13 . . . 1 . 12 2 5 10 8 5 7 5 . 4 26 30 Energy Discharges 167 | . . . . . . . . . . 2 1 4 2 8 4 6 . . . 1 . . 9 9 . . . 2 2 13 2 13 12 6 5 7 6 . 5 19 29 Parts Rejected 17 | . . . . . . . . . . . . . . 2 . . . . . . . . 1 . . . . . 2 3 . . 2 3 1 . 2 . . . 1 Parts Fused 24 | . . . . . . . . . . . . . . 2 1 2 . . . . . . . 3 . . . 2 . 1 . . 3 1 . . 1 . 1 5 2 Data Loss (minor) 177 | . . . . . . . . . . . 4 2 2 18 5 13 . . . 1 . . 2 10 . . . 5 1 12 2 10 16 4 4 5 8 . 3 16 34 Data Loss (major) 61 | . . . . . . . . . . . 1 1 1 3 5 4 . . . 2 . . . 4 . . 1 3 . 1 3 4 7 . 2 1 1 . 2 3 12 Misfires 73 | . . . . . . . . . . . 1 . 2 5 4 5 . . . . . . 2 5 . . . 2 3 4 . 4 5 1 1 5 6 . . 4 14 Alerts 25 | . . . . . . . . . . . . . 1 1 . 3 . . . . . . . 2 . . . 1 . 2 2 1 2 1 . . . . . 3 6 Misdirections 35 | . . . . . . . . . . . . 1 . 2 . 1 . . . . . . . . . . . . . . . 1 4 6 . 1 4 . . 2 13 Weapon Failures 110 | . . . . . . . . . . . . 3 . 8 2 9 . . . . . . 1 2 . . . 1 1 7 . 2 7 5 3 3 7 . . 13 36 Overload Shots . | . . . . . . . . . . . . . . . . . . . . . . . . . . . . . . . . . . . . . . . . . . Overflow Damage 3328 | . . 16 47 10 . . 34 112 2 . 30 . 4 . 1 71 12 31 . 81 24 114 97 44 . 21 39 22 89 313 122 269 127 44 174 294 30 6 56 676 316 Projectiles 2197 | . . . . . . . . . . . . . . . . 71 12 31 . 81 24 61 92 17 . 21 33 22 16 192 82 209 127 44 104 227 30 6 56 482 157 Explosions 818 | . . 16 47 . . . . 112 . . 9 . . . 1 . . . . . . 53 2 27 . . 6 . 71 121 . 11 . . . 30 . . . 153 159 Melee 313 | . . . . 10 . . 34 . 2 . 21 . 4 . . . . . . . . . 3 . . . . . 2 . 40 49 . . 70 37 . . . 41 . Knockbacks 14 | . . . . . . . . . 2 . . . 1 . . . . . . . 1 . . . . . . . . . . 1 . . 1 1 . . . . 7 Impact 6 | . . . . . . . . . 1 . . . 1 . . . . . . . 1 . . . . . . . . . . 1 . . 1 1 . . . . . Kinetic 7 | . . . . . . . . . . . . . . . . . . . . . . . . . . . . . . . . . . . . . . . . . 7 Secondary 1 | . . . . . . . . . 1 . . . . . . . . . . . . . . . . . . . . . . . . . . . . . . . . Self-Inflicted Damage 1315 | . 8 . . 27 . . . . . 55 . . . 43 86 47 . . . . . 79 119 30 . . . . 8 . . 99 . . 31 78 . . . 130 475 Shots 27 | . 1 . . 1 . . . . . 1 . . . 1 3 2 . . . . . 2 2 1 . . . . 1 . . 1 . . 1 1 . . . 2 7 Rammed 112 | 1 3 2 9 6 . 3 10 . 4 . 5 5 . . 4 . . . 1 . 4 . 7 4 1 . 1 . 2 . 2 4 3 . 3 3 . . . 10 15 Targets Rammed 130 | 1 3 2 11 9 . 3 12 . 4 . 6 5 1 . 6 . . . 1 . 4 . 7 4 1 . 1 . 2 1 3 5 3 . 4 3 . . . 11 17 Kicked . | . . . . . . . . . . . . . . . . . . . . . . . . . . . . . . . . . . . . . . . . . . Crushed 18 | . . . 2 3 . . 2 . . . 1 . 1 . 2 . . . . . . . . . . . . . . 1 1 1 . . 1 . . . . 1 2 Highest Temperature 630 | . 64 . 141 132 . 54 249 348 168 315 410 406 220 336 272 239 486 250 . 39 170 210 443 451 156 165 426 436 45 337 333 156 364 335 315 276 324 75 180 630 404 Average Temperature 92 | . 29 . 38 44 . 25 77 99 59 98 95 142 83 91 84 36 126 91 . 28 74 70 227 133 82 78 250 163 18 120 107 26 87 66 73 86 81 40 61 101 111 Received Heat Transfer 6283 | . 144 . 369 54 . 72 258 163 247 87 182 . 24 368 104 631 154 . 27 256 36 325 44 166 4 . . 346 34 116 34 415 111 108 126 44 52 12 40 860 270 Effects 46 | . . . . . . . . 1 . 2 . 4 . . . . 3 . . . . . . 3 . . 1 9 . 5 . . 1 . . . 1 . . 8 8 Shutdowns 14 | . . . . . . . . . . . . . . . . . 1 . . . . . . . . . . 4 . . . . . . . . . . . 6 3 Energy Bleed 9 | . . . . . . . . . . . . 1 . . . . 2 . . . . . . 1 . . . 1 . 1 . . . . . . 1 . . . 2 Interference 18 | . . . . . . . . . . 2 . 3 . . . . . . . . . . . 2 . . . 3 . 4 . . . . . . . . . 2 2 Short Circuit 1 | . . . . . . . . 1 . . . . . . . . . . . . . . . . . . . . . . . . . . . . . . . . . Damage (minor) 4 | . . . . . . . . . . . . . . . . . . . . . . . . . . . 1 1 . . . . 1 . . . . . . . 1 Siege Activations 31 | . . . . . . . . . . . . . . . . 2 . . . 1 . 1 2 1 . . . . . 2 . 8 1 1 3 2 2 . 3 . 2 Total Turns 437 | . . . . . . . . . . . . . . . . 51 . . . 18 . 20 40 10 . . . . . 66 . 79 6 25 25 20 10 . 57 . 10 Longest Duration 41 | . . . . . . . . . . . . . . . . 39 . . . 18 . 20 27 10 . . . . . 41 . 22 6 25 10 12 7 . 28 . 6 Martial Activations . | . . . . . . . . . . . . . . . . . . . . . . . . . . . . . . . . . . . . . . . . . . Shielding Activations . | . . . . . . . . . . . . . . . . . . . . . . . . . . . . . . . . . . . . . . . . . . Robots Disrupted 3 | . 1 . . . . . . . . . . . . . . . . . . . . . . . . . . . . . . . . . . 1 . . . 1 . Combat Hostiles 3 | . 1 . . . . . . . . . . . . . . . . . . . . . . . . . . . . . . . . . . 1 . . . 1 . Robots Corrupted 100 | . . . . . . . . . 1 . . . . . . . . . . . 1 . . . . . . 9 1 10 2 10 9 8 8 4 8 6 9 10 4 Combat Hostiles 93 | . . . . . . . . . . . . . . . . . . . . . 1 . . . . . . 9 . 9 2 9 9 8 7 2 8 6 9 10 4 Parts Fried 181 | . . . . 1 . . . . 2 . 1 . 2 . . . . . . . 3 . . 2 . . . 15 2 19 3 15 22 11 10 18 16 8 12 10 9 Impact Corruptions 18 | . . . . 1 . . . . 1 . 1 . 1 . . . . . . . . . 1 . . . . . 1 . 1 2 . . 4 2 . . . 3 . Robots Melted 24 | . . . . . . 1 . . . . . . . . . 1 . 1 . 1 1 2 . 1 . . . . 1 . . 1 3 . 2 3 1 1 2 2 . Combat Hostiles 21 | . . . . . . 1 . . . . . . . . . 1 . 1 . . 1 2 . 1 . . . . . . . 1 3 . 2 2 1 1 2 2 . Parts Melted 108 | . . . 3 1 . . 1 . 2 3 . . . 1 1 11 3 2 . 8 . 2 2 4 . . . . 1 6 3 5 10 1 8 3 4 3 6 10 4 Heat Transferred 56913 | . 300 . 2625 705 . 75 2750 1065 3324 1380 955 3250 360 1416 351 2960 703 4699 37 4810 407 2052 1257 1436 . 481 330 185 185 962 555 1617 1275 888 2024 1445 666 148 880 4472 3883 Parts Sabotaged 2 | . . . . . . . . . . . . . . . . . . . . . 2 . . . . . . . . . . . . . . . . . . . . Parts Stolen . | . . . . . . . . . . . . . . . . . . . . . . . . . . . . . . . . . . . . . . . . . . Parts Stripped . | . . . . . . . . . . . . . . . . . . . . . . . . . . . . . . . . . . . . . . . . . . Power Chain Reactions 7 | . 1 . . . . . . . . . . . . . . . . . . . . . 1 1 . . . . . . . 1 . . 1 1 . . . 1 . Alert | -11 -10 -10 -9 -9 -9 -8 -8 -8 -8 -8 -7 -7 -7 -7 -7 -7 -6 -6 -6 -6 -5 -5 -5 -5 -4 -4 -4 -4 -4 -4 -3 -3 -3 -3 -2 -2 -2 -1 -1 -1 -1 ------- Run | Yrd Mat Min Mat Min Exi Min Mat Gar Mat Gar Fac Was Fac Gar Fac Gar Fac Was Fac Gar Fac Gar Fac Gar Fac Was Fac Gar Fac Gar Res Qua Sec Gar Res Tes Gar Acc Gar Acc Com Maximum Alert Level 5 | . . . 3 2 . . 1 3 2 3 2 . . 4 2 4 3 1 1 5 3 4 3 4 2 . 1 4 3 4 3 1 2 3 2 1 4 3 4 3 3 Low Security (%) 36 | 100 100 100 9 53 . 100 89 13 70 29 49 100 100 14 54 13 . 83 60 2 22 1 11 3 . 100 89 3 5 . 48 77 64 . 25 87 1 6 3 46 . Level 1 15 | . . . 44 45 . . 10 2 17 29 49 . . 29 . 13 . 16 39 8 24 16 8 2 . . 10 3 35 13 . 22 29 31 4 12 16 34 14 21 . Level 2 22 | . . . 43 1 . . . 57 11 30 1 . . 26 45 11 . . . 22 . 9 63 52 100 . . 38 45 43 50 . 5 34 70 . 12 44 31 26 11 Level 3 19 | . . . 3 . . . . 25 . 10 . . . 12 . 27 100 . . 29 52 22 16 35 . . . 44 12 18 . . . 34 . . 54 14 23 5 88 Level 4 6 | . . . . . . . . . . . . . . 17 . 33 . . . 32 . 51 . 5 . . . 9 . 25 . . . . . . 15 . 26 . . Level 5 . | . . . . . . . . . . . . . . . . . . . . 3 . . . . . . . . . . . . . . . . . . . . . High Security . | . . . . . . . . . . . . . . . . . . . . . . . . . . . . . . . . . . . . . . . . . . Max Security . | . . . . . . . . . . . . . . . . . . . . . . . . . . . . . . . . . . . . . . . . . . Sterilizations 1 | . . . 1 . . . . . . . . . . . . . . . . . . . . . . . . . . . . . . . . . . . . . . Peak Influence 1647 | . 102 74 736 403 . 104 264 847 477 768 403 83 30 1254 667 1429 933 283 295 1647 868 1431 749 1119 587 152 256 1323 727 1184 701 302 470 1016 598 258 1189 728 1247 748 862 Initial 864 | . . 12 . 283 . . . 12 412 33 403 83 . . 658 81 749 283 . 165 864 101 745 53 587 152 . 156 694 227 666 27 69 351 571 81 191 712 145 748 463 Average 410 | . 29 13 386 192 . 15 89 574 168 370 208 15 6 558 325 801 862 82 147 961 511 936 541 630 512 34 67 717 506 715 344 112 177 616 390 107 736 492 764 291 712 Influence Increases 31125 | . 287 141 1539 335 . 104 855 835 800 765 430 . 105 1404 344 1468 383 11 758 1822 157 1510 417 1416 8 6 469 1627 289 1127 494 978 1228 925 1015 866 1148 338 1312 2041 1368 Destroy 0b10 Robot/C 15360 | . 140 100 1000 240 . 60 560 520 520 440 240 . 40 640 180 760 220 . 300 820 60 820 240 640 . . 140 720 60 560 240 560 580 420 580 480 500 200 480 940 360 Destroy 0b10 Robot/NC 715 | . 10 . 90 30 . 5 65 5 60 . 15 . 15 30 35 . . . 5 30 . . 10 20 . . 20 5 30 . 25 35 10 . 20 15 . . . 45 85 Destroy Leader 2218 | . 34 20 250 40 . 10 136 20 134 30 82 . 20 30 32 40 50 . 50 40 10 20 30 50 . . 20 50 22 50 54 60 132 50 160 52 40 60 70 210 60 Allied During Kill 2392 | . . 4 41 . . . . . . . . . . 206 26 9 1 . 355 236 3 148 4 99 . . 180 275 19 12 72 9 122 19 . 43 92 6 134 216 61 Trap Triggered on 0b10 40 | . . . . . . . . . . . 30 . . . . . . . . . . . . . . . . . . . . 10 . . . . . . . . . Successful Hack 784 | . 37 . 29 6 . . 27 32 26 14 12 . 30 14 19 . 40 . . 21 14 12 20 33 . . 5 14 48 33 38 65 7 30 30 54 . 69 . . 5 Select Force Hacks 240 | . 60 . 60 . . . . . . . . . . . . . . . . . 30 . 30 . . . . . 30 . . . . . . 30 . . . . . Disable Machine 1065 | . . . 30 . . . . 30 . . 15 . . . 30 15 30 . 45 45 . 15 45 . . . 60 15 . 15 15 135 135 . 60 120 . . . 105 105 Anti-Garrison Action 4200 | . . . . . . . . 150 . 150 . . . 350 . 500 . . . 500 . 300 . 400 . . . 400 . 350 . . . 250 . . 400 . 450 . . Destroy Structure 3361 | . 6 17 39 19 . 29 7 78 15 131 36 . . 119 22 69 12 11 3 70 10 195 38 174 8 6 44 118 80 107 20 44 212 51 135 57 86 3 103 525 662 Partial Spotted 30 | . . . . . . . . . . . . . . . . . 15 . . . . . . . . . . . . . . 15 . . . . . . . . . Lose Combat Pursuer 720 | . . . . . . . 60 . 45 . . . . 15 . 75 15 . . 60 30 . . . . . . 30 . . 30 45 30 105 30 15 30 . 75 . 30 Influence Decreases 30089 | . 255 173 811 1001 62 104 836 7 1595 49 960 238 105 150 1481 156 1002 821 522 411 1659 234 1762 373 692 441 245 528 1287 268 1629 902 885 377 1886 756 214 1345 247 2564 1056 Entered New Map 9114 | . . 20 . 445 62 . . 7 435 19 365 155 . . 596 36 680 527 . 71 783 44 676 23 532 283 . 68 629 98 518 22 56 117 445 64 64 477 37 499 261 Time Decay 11045 | . 235 153 621 526 . 104 527 . 642 . 565 83 105 . 410 . 302 294 292 . 416 . 484 . 160 158 215 . 198 . 541 580 581 . 602 562 . 368 . 726 595 Lost Part 840 | . 20 . 20 30 . . 20 . 10 30 30 . . 50 10 70 . . . 10 10 40 20 80 . . 10 10 . 30 . 70 20 20 30 . 10 . 20 100 70 Lost Ally 4022 | . . . 20 . . . . . . . . . . 100 90 50 20 . 80 330 . 150 100 270 . . 20 450 10 140 120 80 228 240 120 130 140 . 190 814 130 Purge Threat 5068 | . . . 150 . . . 289 . 508 . . . . . 375 . . . 150 . 450 . 482 . . . . . 450 . 450 150 . . 689 . . 500 . 425 . Squads Dispatched 118 | . 3 . 9 . . . 5 . 9 . 5 . . . 3 . 1 . 2 . 3 . 3 . 2 . 2 . 1 . 7 4 15 . 11 6 . 2 . 21 4 Investigation 15 | . 3 . 5 . . . . . . . 1 . . . . . . . . . 1 . 1 . . . . . 1 . 1 . . . 1 1 . . . . . Extermination 44 | . . . . . . . . . . . 3 . . . 2 . . . 1 . 1 . 1 . 1 . 1 . . . 3 3 5 . 5 4 . 2 . 9 3 Reinforcement 32 | . . . 2 . . . . . 3 . 1 . . . 1 . 1 . . . . . . . 1 . 1 . . . 2 1 9 . 1 1 . . . 8 . Assault 8 | . . . 2 . . . . . . . . . . . . . . . . . 1 . 1 . . . . . . . 1 . . . 1 . . . . 1 1 Garrison 19 | . . . . . . . 5 . 6 . . . . . . . . . 1 . . . . . . . . . . . . . 1 . 3 . . . . 3 . Intercept . | . . . . . . . . . . . . . . . . . . . . . . . . . . . . . . . . . . . . . . . . . . Searches Triggered . | . . . . . . . . . . . . . . . . . . . . . . . . . . . . . . . . . . . . . . . . . . Unchained Authorized 7 | . . . . . . . . . . . . . . . . . . . . . . . . . 1 . 1 . . . . 1 . . 1 . . 1 . 2 . Construction Impeded . | . . . . . . . . . . . . . . . . . . . . . . . . . . . . . . . . . . . . . . . . . . Haulers Reinforced 6 | . . . . . . . . . . . 1 . . . . . 1 . . . . . . . . . . . . . 1 . 2 . . . . . . 1 . Active Scanning Responses . | . . . . . . . . . . . . . . . . . . . . . . . . . . . . . . . . . . . . . . . . . . Cargo Convoy Interrupts . | . . . . . . . . . . . . . . . . . . . . . . . . . . . . . . . . . . . . . . . . . . Alert ID Control Effect 123 | . . . . . . . . . . . . . . . . . . . . . . . 3 13 . . . 8 2 2 3 1 33 2 5 . 3 . 12 17 19 Stealth | -11 -10 -10 -9 -9 -9 -8 -8 -8 -8 -8 -7 -7 -7 -7 -7 -7 -6 -6 -6 -6 -5 -5 -5 -5 -4 -4 -4 -4 -4 -4 -3 -3 -3 -3 -2 -2 -2 -1 -1 -1 -1 --------- Run | Yrd Mat Min Mat Min Exi Min Mat Gar Mat Gar Fac Was Fac Gar Fac Gar Fac Was Fac Gar Fac Gar Fac Gar Fac Was Fac Gar Fac Gar Res Qua Sec Gar Res Tes Gar Acc Gar Acc Com Distress Signals 49 | . 1 . 1 2 . . 2 1 5 . . . . . 1 . . . . . 1 . . . . . 1 . 1 . . 2 2 . 1 . 1 . . 10 17 Communications Jammed 1181 | . . . . . . . . . . . 1 . . . 7 . 16 . . 2 1 . 70 51 . . 24 . 163 . 55 71 219 61 54 46 . . . 318 22 Distress Signals 1178 | . . . . . . . . . . . 1 . . . 6 . 16 . . 2 1 . 69 51 . . 24 . 163 . 55 71 219 61 53 46 . . . 318 22 Times Spotted 1392 | . 12 6 58 12 . 3 41 22 41 24 17 5 2 31 31 46 23 6 16 47 15 54 36 63 1 5 17 51 15 51 36 40 81 43 60 39 41 17 67 155 62 Peak Tracking Total 15 | . 4 3 7 3 . 3 4 4 8 4 3 2 1 5 7 6 6 3 4 6 5 14 6 9 1 3 4 3 4 6 6 4 9 5 4 6 5 6 6 15 6 Tactical Retreats 50 | . . . . . . . 3 . 3 . . . . 1 . 3 1 . . 3 2 . . . . . . 2 . . 2 3 2 7 2 1 1 . 3 8 3 Traps | -11 -10 -10 -9 -9 -9 -8 -8 -8 -8 -8 -7 -7 -7 -7 -7 -7 -6 -6 -6 -6 -5 -5 -5 -5 -4 -4 -4 -4 -4 -4 -3 -3 -3 -3 -2 -2 -2 -1 -1 -1 -1 ------- Run | Yrd Mat Min Mat Min Exi Min Mat Gar Mat Gar Fac Was Fac Gar Fac Gar Fac Was Fac Gar Fac Gar Fac Gar Fac Was Fac Gar Fac Gar Res Qua Sec Gar Res Tes Gar Acc Gar Acc Com Traps Triggered 59 | . 3 . 2 . . . . 1 . . 1 . . 6 . 2 1 . . 5 . 3 4 5 1 . . 2 . 3 3 1 . . 1 6 5 . 1 3 . Indirectly 1 | . . . . . . . . . . . . . . . . . . . . . . . 1 . . . . . . . . . . . . . . . . . . Trap Hack Attempts 18 | . . . . . . . . 18 . . . . . . . . . . . . . . . . . . . . . . . . . . . . . . . . . Triggered . | . . . . . . . . . . . . . . . . . . . . . . . . . . . . . . . . . . . . . . . . . . Disarmed 1 | . . . . . . . . 1 . . . . . . . . . . . . . . . . . . . . . . . . . . . . . . . . . Reprogrammed . | . . . . . . . . . . . . . . . . . . . . . . . . . . . . . . . . . . . . . . . . . . Reused 3 | . . . . . . . . . . . 3 . . . . . . . . . . . . . . . . . . . . . . . . . . . . . . Traps Reconfigurated 3 | . . . . . . . . . . . 3 . . . . . . . . . . . . . . . . . . . . . . . . . . . . . . Traps Extracted . | . . . . . . . . . . . . . . . . . . . . . . . . . . . . . . . . . . . . . . . . . . Installed . | . . . . . . . . . . . . . . . . . . . . . . . . . . . . . . . . . . . . . . . . . . Triggered 4 | . . . . . . . . . . . 3 . . . . . . . . . . . . . . . . . . . . 1 . . . . . . . . . Machines | -11 -10 -10 -9 -9 -9 -8 -8 -8 -8 -8 -7 -7 -7 -7 -7 -7 -6 -6 -6 -6 -5 -5 -5 -5 -4 -4 -4 -4 -4 -4 -3 -3 -3 -3 -2 -2 -2 -1 -1 -1 -1 ---------- Run | Yrd Mat Min Mat Min Exi Min Mat Gar Mat Gar Fac Was Fac Gar Fac Gar Fac Was Fac Gar Fac Gar Fac Gar Fac Was Fac Gar Fac Gar Res Qua Sec Gar Res Tes Gar Acc Gar Acc Com Machines Disabled 130 | . . . 2 . . . . 3 . 2 1 . . 5 2 6 2 . 3 9 . 5 3 5 . . 4 10 . 6 1 9 10 4 4 8 5 . 6 7 8 Max in Single Turn 2 | . . . 1 . . . . 2 . 1 1 . . 1 1 1 1 . . 2 . 1 2 1 . . 2 2 . 1 . 1 1 1 1 1 1 . 1 2 2 Garrison Access 1 | . . . . . . . . . . . . . . . . . . . . . . . . . . . . . . . . . . . 1 . . . . . . Garrison Relay 51 | . . . . . . . . 1 . 2 . . . 5 . 5 . . . 4 . 4 . 4 . . . 4 . 6 . . . 4 . . 5 . 7 . . Phase Generator 2 | . . . . . . . . 1 . . . . . . . . . . . 1 . . . . . . . . . . . . . . . . . . . . . Machines Repaired . | . . . . . . . . . . . . . . . . . . . . . . . . . . . . . . . . . . . . . . . . . . Machines Dismantled . | . . . . . . . . . . . . . . . . . . . . . . . . . . . . . . . . . . . . . . . . . . Machines Sabotaged . | . . . . . . . . . . . . . . . . . . . . . . . . . . . . . . . . . . . . . . . . . . Overloaded Fab Kills . | . . . . . . . . . . . . . . . . . . . . . . . . . . . . . . . . . . . . . . . . . . Hacking | -11 -10 -10 -9 -9 -9 -8 -8 -8 -8 -8 -7 -7 -7 -7 -7 -7 -6 -6 -6 -6 -5 -5 -5 -5 -4 -4 -4 -4 -4 -4 -3 -3 -3 -3 -2 -2 -2 -1 -1 -1 -1 --------- Run | Yrd Mat Min Mat Min Exi Min Mat Gar Mat Gar Fac Was Fac Gar Fac Gar Fac Was Fac Gar Fac Gar Fac Gar Fac Was Fac Gar Fac Gar Res Qua Sec Gar Res Tes Gar Acc Gar Acc Com Machines Accessed 150 | . 10 . 12 1 2 . 8 2 7 1 6 . 3 4 4 2 4 . 4 2 6 2 6 3 1 . 2 2 4 3 5 10 6 2 10 6 1 4 4 . 1 Terminals 101 | . 8 . 8 1 . . 6 2 5 1 4 . 1 4 2 2 2 . 1 2 1 2 5 3 1 . . 2 1 3 4 6 4 2 6 4 1 2 4 . 1 Fabricators 4 | . . . . . . . . . . . . . . . . . . . 2 . 1 . . . . . . . . . . . . . . 1 . . . . . Repair Stations 11 | . . . . . . . . . 1 . . . . . 1 . 1 . . . 1 . . . . . 1 . 2 . . 1 . . 2 . . 1 . . . Recycling Units 4 | . 2 . 2 . . . . . . . . . . . . . . . . . . . . . . . . . . . . . . . . . . . . . . Scanalyzers 14 | . . . 2 . . . 1 . . . 2 . 1 . . . 1 . . . 1 . . . . . . . . . 1 3 1 . 1 . . . . . . Garrison Access 14 | . . . . . . . 1 . 1 . . . 1 . 1 . . . 1 . 2 . 1 . . . 1 . 1 . . . 1 . 1 1 . 1 . . . Total Hacks 357 | . 22 . 33 5 2 . 34 5 25 2 13 . 6 8 12 4 6 . 10 3 12 4 17 7 3 . 3 2 11 4 14 17 13 4 21 12 2 8 12 . 1 Successful 181 | . 12 . 16 2 2 . 21 3 18 1 5 . 4 1 6 . 3 . 6 2 7 2 8 3 1 . 3 2 7 3 6 5 4 2 12 6 . 5 2 . 1 Failed 172 | . 10 . 16 3 . . 12 2 6 1 8 . 2 7 6 4 3 . 4 1 4 2 9 4 2 . . . 4 1 8 12 9 2 9 6 2 3 10 . . Catastrophic 36 | . 1 . 3 . . . 1 . . 1 . . 1 2 1 2 1 . 1 1 . 1 2 3 . . . . . . 2 3 3 . 3 1 1 1 1 . . Database Lockouts 4 | . . . 1 . . . 1 . 1 . . . . . . . . . . . 1 . . . . . . . . . . . . . . . . . . . . Manual 164 | . 19 . 23 6 1 . 19 4 13 2 4 . 2 . 4 . 3 . 2 . 7 1 5 1 3 . . . 3 . 9 6 3 . 12 3 . 4 5 . . Terminals 243 | . 20 . 21 5 . . 26 5 21 2 8 . 1 8 6 4 2 . 4 3 2 4 14 7 3 . . 2 1 4 11 8 9 4 12 7 2 4 12 . 1 Fabricators 8 | . . . . . . . . . . . . . . . . . . . 4 . 2 . . . . . . . . . . . . . . 2 . . . . . Repair Stations 25 | . . . . . . . . . 2 . . . . . 4 . 2 . . . 1 . . . . . 2 . 7 . . 1 . . 4 . . 2 . . . Recycling Units 7 | . 2 . 5 . . . . . . . . . . . . . . . . . . . . . . . . . . . . . . . . . . . . . . Scanalyzers 40 | . . . 7 . . . 7 . . . 5 . 2 . . . 2 . . . 2 . . . . . . . . . 3 8 2 . 2 . . . . . . Garrison Access 32 | . . . . . . . 1 . 2 . . . 3 . 2 . . . 2 . 5 . 3 . . . 1 . 3 . . . 2 . 3 3 . 2 . . . Terminal Hacks 66 | . 3 . 4 2 2 . 6 3 6 1 2 . . 1 . . . . 1 2 . 2 4 3 . . . 2 1 3 3 1 2 2 5 2 . . 2 . 1 Record 2 | . . . . . 1 . . . . . . . . . . . . . . . . . . . . . . . . . . . . . 1 . . . . . . Robot Schematic 1 | . 1 . . . . . . . . . . . . . . . . . . . . . . . . . . . . . . . . . . . . . . . . Robot Analysis 4 | . 1 . . 1 . . . . 1 . . . . . . . . . . . . . . . . . . . 1 . . . . . . . . . . . . Prototype ID Bank 4 | . 1 . 1 . . . . . 1 . 1 . . . . . . . . . . . . . . . . . . . . . . . . . . . . . . Open Door 9 | . . . . . . . . . . . . . . . . . . . . 1 . . . 1 . . . 1 . 1 . . 2 . . 1 . . 1 . 1 Level Access Points 1 | . . . . . . . . . . . . . . . . . . . . . . . . . . . . . . . . 1 . . . . . . . . . Branch Access Points 2 | . . . . . . . . . . . . . . . . . . . . . . . . . . . . . . . 1 . . . 1 . . . . . . Emergency Access Points 8 | . . . . . . . . 1 . . . . . 1 . . . . . 1 . 1 . 1 . . . 1 . 1 . . . . . . . . 1 . . Terminal Index 1 | . . . . . . . . . . . . . . . . . . . . . . . . . . . . . . . . . . . . 1 . . . . . Alert Level 3 | . . . 1 1 . . 1 . . . . . . . . . . . . . . . . . . . . . . . . . . . . . . . . . . Unreport Threat 12 | . . . 1 . . . 3 . 1 . . . . . . . . . 1 . . . 2 . . . . . . . 2 . . . 2 . . . . . . Locate Traps 2 | . . . . . . . 1 . . . 1 . . . . . . . . . . . . . . . . . . . . . . . . . . . . . . Patrol Status 2 | . . . . . . . . . 1 . . . . . . . . . . . . . 1 . . . . . . . . . . . . . . . . . . Hauler Manifests 1 | . . . . . . . 1 . . . . . . . . . . . . . . . . . . . . . . . . . . . . . . . . . . Registered Components 1 | . . . . . . . . . . . . . . . . . . . . . . . 1 . . . . . . . . . . . . . . . . . . Zone Layout 4 | . . . 1 . . . . . 2 . . . . . . . . . . . . . . . . . . . . . . . . . 1 . . . . . . Garrison Registry 5 | . . . . . . . . 1 . 1 . . . . . . . . . . . . . 1 . . . . . 1 . . . 1 . . . . . . . Patrol Navigation 2 | . . . . . . . . 1 . . . . . . . . . . . . . . . . . . . . . . . . . 1 . . . . . . . Security Stations 1 | . . . . . . . . . . . . . . . . . . . . . . 1 . . . . . . . . . . . . . . . . . . . Proto ID Catalog 1 | . . . . . 1 . . . . . . . . . . . . . . . . . . . . . . . . . . . . . . . . . . . . Fabricator Hacks 2 | . . . . . . . . . . . . . . . . . . . 2 . . . . . . . . . . . . . . . . . . . . . . Network Status 2 | . . . . . . . . . . . . . . . . . . . 2 . . . . . . . . . . . . . . . . . . . . . . Repair Station Hacks 11 | . . . . . . . . . 2 . . . . . 3 . . . . . . . . . . . 2 . 2 . . . . . . . . 2 . . . Scan Component 7 | . . . . . . . . . 1 . . . . . 2 . . . . . . . . . . . 1 . 2 . . . . . . . . 1 . . . Repair 4 | . . . . . . . . . 1 . . . . . 1 . . . . . . . . . . . 1 . . . . . . . . . . 1 . . . Recycling Unit Hacks . | . . . . . . . . . . . . . . . . . . . . . . . . . . . . . . . . . . . . . . . . . . Scanalyzer 21 | . . . 4 . . . 6 . . . 2 . 1 . . . 1 . . . 1 . . . . . . . . . 2 2 . . 2 . . . . . . Insert Component 2 | . . . 1 . . . . . . . . . . . . . . . . . . . . . . . . . . . . 1 . . . . . . . . . Analyze 1 | . . . 1 . . . . . . . . . . . . . . . . . . . . . . . . . . . . . . . . . . . . . . Retrieve Study 18 | . . . 2 . . . 6 . . . 2 . 1 . . . 1 . . . 1 . . . . . . . . . 2 1 . . 2 . . . . . . Garrison Access Hacks 25 | . . . . . . . 1 . 2 . . . 2 . 2 . . . 2 . 3 . 2 . . . 1 . 2 . . . 2 . 2 2 . 2 . . . Unlock Access 12 | . . . . . . . 1 . 1 . . . 1 . 1 . . . 1 . 1 . 1 . . . 1 . 1 . . . 1 . . 1 . 1 . . . Seal Access 1 | . . . . . . . . . . . . . . . . . . . . . . . . . . . . . . . . . . . 1 . . . . . . Coupler Status 12 | . . . . . . . . . 1 . . . 1 . 1 . . . 1 . 2 . 1 . . . . . 1 . . . 1 . 1 1 . 1 . . . Unauthorized Hacks 56 | . 9 . 8 . . . 8 . 8 . 1 . 1 . 1 . 2 . 1 . 3 . 2 . 1 . . . 2 . 1 2 . . 3 2 . 1 . . . Terminals 40 | . 7 . 6 . . . 8 . 8 . 1 . 1 . 1 . 1 . . . . . 1 . 1 . . . . . 1 1 . . 1 1 . 1 . . . Track 1 | . . . . . . . . . 1 . . . . . . . . . . . . . . . . . . . . . . . . . . . . . . . . Assimilate 4 | . . . . . . . 1 . 2 . . . . . . . . . . . . . . . . . . . . . . . . . . . . 1 . . . Botnet 6 | . 2 . . . . . 1 . 1 . . . 1 . . . . . . . . . . . . . . . . . . 1 . . . . . . . . . Disrupt 1 | . . . 1 . . . . . . . . . . . . . . . . . . . . . . . . . . . . . . . . . . . . . . Operators 9 | . . . . . . . 1 . . . 1 . . . 1 . 1 . . . . . 1 . 1 . . . . . 1 . . . 1 1 . . . . . Skim 19 | . 5 . 5 . . . 5 . 4 . . . . . . . . . . . . . . . . . . . . . . . . . . . . . . . . Fabricators 2 | . . . . . . . . . . . . . . . . . . . 1 . 1 . . . . . . . . . . . . . . . . . . . . Haulers 2 | . . . . . . . . . . . . . . . . . . . 1 . 1 . . . . . . . . . . . . . . . . . . . . Repair Stations 5 | . . . . . . . . . . . . . . . . . 1 . . . 1 . . . . . . . 1 . . 1 . . 1 . . . . . . Mechanics 5 | . . . . . . . . . . . . . . . . . 1 . . . 1 . . . . . . . 1 . . 1 . . 1 . . . . . . Recycling Units 4 | . 2 . 2 . . . . . . . . . . . . . . . . . . . . . . . . . . . . . . . . . . . . . . Tunnel 4 | . 2 . 2 . . . . . . . . . . . . . . . . . . . . . . . . . . . . . . . . . . . . . . Scanalyzers . | . . . . . . . . . . . . . . . . . . . . . . . . . . . . . . . . . . . . . . . . . . Garrison Access 5 | . . . . . . . . . . . . . . . . . . . . . 1 . 1 . . . . . 1 . . . . . 1 1 . . . . . Restock 1 | . . . . . . . . . . . . . . . . . . . . . . . . . . . . . . . . . . . 1 . . . . . . Eject 4 | . . . . . . . . . . . . . . . . . . . . . 1 . 1 . . . . . 1 . . . . . . 1 . . . . . Data Cores Recovered 3 | . 1 . . . . . . . . . . . . . 1 . . . . . . . . . . . . . . . . . . . . . . . . . 1 Used . | . . . . . . . . . . . . . . . . . . . . . . . . . . . . . . . . . . . . . . . . . . Hacking Detections 121 | . 8 . 8 1 . . 8 2 7 1 5 . 3 4 4 2 2 . 4 2 3 1 6 3 1 . 1 . 4 2 4 10 4 1 8 4 1 4 3 . . Full Trace Events 11 | . . . 1 1 . . . . . 1 1 . . . . 1 . . . 1 . . . . . . . . . . 1 . . 1 1 . 1 . 1 . . Feedback Events 1 | . . . . . . . . . . . . . . . . . . . . . . . . . . . . . . . . . . . . . 1 . . . . Corruption 1 | . . . . . . . . . . . . . . . . . . . . . . . . . . . . . . . . . . . . . 1 . . . . Feedback Blocked . | . . . . . . . . . . . . . . . . . . . . . . . . . . . . . . . . . . . . . . . . . . Robot Schematics Acquired 6 | . 1 . . . . . . . . . . . . . . . . . . . . . . . . . . . . . . 1 . . . 4 . . . . . Robots Built . | . . . . . . . . . . . . . . . . . . . . . . . . . . . . . . . . . . . . . . . . . . Authchips . | . . . . . . . . . . . . . . . . . . . . . . . . . . . . . . . . . . . . . . . . . . Time . | . . . . . . . . . . . . . . . . . . . . . . . . . . . . . . . . . . . . . . . . . . Total Robot Build Rating . | . . . . . . . . . . . . . . . . . . . . . . . . . . . . . . . . . . . . . . . . . . Part Schematics Acquired 18 | . . . . . . . . . . . . . . . . . . . . . . . . . . . . . . . . 5 3 1 . 9 . . . . . Parts Built . | . . . . . . . . . . . . . . . . . . . . . . . . . . . . . . . . . . . . . . . . . . Authchips . | . . . . . . . . . . . . . . . . . . . . . . . . . . . . . . . . . . . . . . . . . . Time . | . . . . . . . . . . . . . . . . . . . . . . . . . . . . . . . . . . . . . . . . . . Total Part Build Rating . | . . . . . . . . . . . . . . . . . . . . . . . . . . . . . . . . . . . . . . . . . . Part Studies Acquired 16 | . . . 2 . . . 6 . . . 1 . 1 . . . . . . . 1 . . . . . . . . . 2 1 . . 2 . . . . . . Parts Repaired 4 | . . . . . . . . . 1 . . . . . 1 . . . . . . . . . . . 1 . . . . . . . . . . 1 . . . Time 186 | . . . . . . . . . 38 . . . . . 62 . . . . . . . . . . . 74 . . . . . . . . . . 12 . . . Parts Recycled . | . . . . . . . . . . . . . . . . . . . . . . . . . . . . . . . . . . . . . . . . . . Recycled Matter . | . . . . . . . . . . . . . . . . . . . . . . . . . . . . . . . . . . . . . . . . . . Retrieved Matter . | . . . . . . . . . . . . . . . . . . . . . . . . . . . . . . . . . . . . . . . . . . Retrieved Components . | . . . . . . . . . . . . . . . . . . . . . . . . . . . . . . . . . . . . . . . . . . Parts Scanalyzed 1 | . . . 1 . . . . . . . . . . . . . . . . . . . . . . . . . . . . . . . . . . . . . . Part Schematics Acquired . | . . . . . . . . . . . . . . . . . . . . . . . . . . . . . . . . . . . . . . . . . . Parts Damaged . | . . . . . . . . . . . . . . . . . . . . . . . . . . . . . . . . . . . . . . . . . . Bothacking | -11 -10 -10 -9 -9 -9 -8 -8 -8 -8 -8 -7 -7 -7 -7 -7 -7 -6 -6 -6 -6 -5 -5 -5 -5 -4 -4 -4 -4 -4 -4 -3 -3 -3 -3 -2 -2 -2 -1 -1 -1 -1 ------------ Run | Yrd Mat Min Mat Min Exi Min Mat Gar Mat Gar Fac Was Fac Gar Fac Gar Fac Was Fac Gar Fac Gar Fac Gar Fac Was Fac Gar Fac Gar Res Qua Sec Gar Res Tes Gar Acc Gar Acc Com Used RIF Installer 12 | . . . . . . . . 1 . 1 . . . 1 . 1 . . . 1 . 1 . 1 . . . 1 . 1 . . . 1 . . 1 . 1 . . Hotswap 1 | . . . . . . . . . . . . . . . . . . . . . . . . . . . . . . 1 . . . . . . . . . . . Code Merge 2 | . . . . . . . . . . . . . . . . . . . . . . . . 1 . . . . . . . . . 1 . . . . . . . Command Fork 2 | . . . . . . . . . . . . . . . . . . . . 1 . . . . . . . . . . . . . . . . 1 . . . . Signal Jammer 1 | . . . . . . . . . . 1 . . . . . . . . . . . . . . . . . . . . . . . . . . . . . . . Zone Cloak 1 | . . . . . . . . . . . . . . 1 . . . . . . . . . . . . . . . . . . . . . . . . . . . Watcher Feeds 1 | . . . . . . . . . . . . . . . . 1 . . . . . . . . . . . . . . . . . . . . . . . . . Alert ID Control 1 | . . . . . . . . . . . . . . . . . . . . . . 1 . . . . . . . . . . . . . . . . . . . Autoassimilate 1 | . . . . . . . . . . . . . . . . . . . . . . . . . . . . . . . . . . . . . . . 1 . . Crosswire 1 | . . . . . . . . . . . . . . . . . . . . . . . . . . . . 1 . . . . . . . . . . . . . Robots Hacked 308 | . . . . . . . . . 2 . 2 6 . 4 9 11 7 6 3 9 5 11 16 19 1 4 . 8 3 16 8 13 21 10 17 11 10 2 24 39 11 Non-combat 60 | . . . . . . . . . 2 . 2 . . . 4 . 3 . 1 1 3 1 4 . . . . 1 2 . 4 4 1 . 5 2 . 1 . 17 2 Combat 248 | . . . . . . . . . . . . 6 . 4 5 11 4 6 2 8 2 10 12 19 1 4 . 7 1 16 4 9 20 10 12 9 10 1 24 22 9 Autoassimilated 7 | . . . . . . . . . . . . . . . . . . . . . . . . . . . . . . . . . . . . . . . . 5 2 Robot Hacks Applied 352 | . . . . . . . . . 4 . 2 6 . 4 14 13 8 7 3 9 10 11 22 22 1 5 . 8 8 16 12 15 21 10 22 12 10 7 24 35 11 parse_system 16 | . . . . . . . . . . . . . . . . . . 1 1 . . 2 . 3 . 1 . . . . . 1 1 . . 1 . . . 1 4 find_chute 4 | . . . . . . . . . . . 1 . . . . . 1 . . . 2 . . . . . . . . . . . . . . . . . . . . map_walls 2 | . . . . . . . . . . . . . . . . . . . . . . . . . . . . . . . . . . . 1 . . . . 1 . map_earth 2 | . . . . . . . . . . . . . . . . . . . . . . . . . . . . . . . . . . . . . . . . 2 . find_fabricator 1 | . . . . . . . . . . . . . . . . . . . . . . . . . . . . . . . 1 . . . . . . . . . . drop_inventory 15 | . . . . . . . . . 1 . . . . . 1 . 2 . 1 . . . 2 . . . . . . . 2 2 . . 1 1 . . . 2 . purge_threat 29 | . . . . . . . . . 3 . . . . . 3 . . . . . 4 . 2 . . . . . 4 . 1 1 . . 4 . . 5 . 2 . reprogram_traps 1 | . . . . . . . . . . . . . . . . . . . . . . . . . . . . . . . . 1 . . . . . . . . . block_reporting 9 | . . . . . . . . . . . . . . . 1 . . . . . 1 . 1 . . . . . 1 . 1 2 . . 1 . . 1 . . . map_route 9 | . . . . . . . . . . . . . . . . . . . . . . . . . . . . . . . . . . . 1 . . . . 8 . disable_scanner 10 | . . . . . . . . . . . . . . . . . . . . . . . . . . . . . . . . 4 2 . . 4 . . . . . ignore_targets 16 | . . . . . . . . . . . . 6 . . . . . 6 . . . . . . . 4 . . . . . . . . . . . . . . . find_garrison 5 | . . . . . . . . . . . . . . . 2 . 1 . 1 . . . 1 . . . . . . . . . . . . . . . . . . scatter_targeting 1 | . . . . . . . . . . . . . . . . . . . . . . . . 1 . . . . . . . . . . . . . . . . . mark_system 1 | . . . . . . . . . . . . . . . . . . . . . . . . 1 . . . . . . . . . . . . . . . . . link_complan 1 | . . . . . . . . . . . . . . . . . . . . . . . . 1 . . . . . . . . . . . . . . . . . disrupt_area 3 | . . . . . . . . . . . . . . . . 2 . . . . . . . 1 . . . . . . . . . . . . . . . . . overload_power 2 | . . . . . . . . . . . . . . . . . . . . . . . 1 . . . . . . . . . 1 . . . . . . . . amplify_resonance 44 | . . . . . . . . . . . . . . . 1 4 3 . . 2 . 2 1 3 . . . . . 5 1 . 2 1 3 2 4 1 6 3 . reboot_system 2 | . . . . . . . . . . . . . . 1 . 1 . . . . . . . . . . . . . . . . . . . . . . . . . overwrite_iff 51 | . . . . . . . . . . . . . . 1 1 5 . . . 2 1 2 5 3 . . . 1 . 3 . 1 7 5 4 . 2 . 4 2 2 formatsys_low 25 | . . . . . . . . . . . 1 . . . 2 . . . . 1 1 . 2 . . . . 1 2 . 3 2 2 . 2 3 . . . 2 1 formatsys_high 103 | . . . . . . . . . . . . . . 2 3 1 1 . . 4 1 5 7 9 1 . . 6 1 8 3 1 6 4 5 1 4 . 14 12 4 Relay Couplers Released 229 | . . . . . . . . 3 . 8 . . . 23 . 19 . . . 16 4 18 4 16 . . . 15 3 26 . . 4 17 . 4 22 . 27 . . Ejected 15 | . . . . . . . . . . . . . . . . . . . . . 4 . 4 . . . . . 3 . . . . . . 4 . . . . . Machine Destruction 210 | . . . . . . . . 3 . 8 . . . 23 . 19 . . . 16 . 18 . 16 . . . 15 . 26 . . . 17 . . 22 . 27 . . Programmers 4 | . . . . . . . . . . . . . . . . . . . . . . . . . . . . . . . . . 4 . . . . . . . . Attached 85 | . . . . . . . . . 1 1 . . 1 4 4 3 2 . . 5 3 4 6 10 1 . . 5 1 7 1 4 3 2 2 . 5 . 4 4 2 Crosswired 56 | . . . . . . . . . . . . . . . . . . . . . . . . . . . . 7 1 11 . . 4 7 . . 10 . 16 . . Merged Code Value 488 | . . . . . . . . . . . . . . . . . . . . . . . . 9 . . . . . 101 . . 14 42 . . 73 . 249 . . Fabnet Peak Effective % . | . . . . . . . . . . . . . . . . . . . . . . . . . . . . . . . . . . . . . . . . . . Robots Rewired 29 | . . . . . . . . . . . . . . 6 . . . . . 2 . 3 . . . . . 5 . . . . . . . 1 . . 11 1 . Allies Hacked 17 | . . . . . . . . . . . . . . . . . . . . . . . 1 1 . . . 1 . . 4 . 1 . 1 2 . . . 3 3 Hacks Repelled . | . . . . . . . . . . . . . . . . . . . . . . . . . . . . . . . . . . . . . . . . . . Allies | -11 -10 -10 -9 -9 -9 -8 -8 -8 -8 -8 -7 -7 -7 -7 -7 -7 -6 -6 -6 -6 -5 -5 -5 -5 -4 -4 -4 -4 -4 -4 -3 -3 -3 -3 -2 -2 -2 -1 -1 -1 -1 -------- Run | Yrd Mat Min Mat Min Exi Min Mat Gar Mat Gar Fac Was Fac Gar Fac Gar Fac Was Fac Gar Fac Gar Fac Gar Fac Was Fac Gar Fac Gar Res Qua Sec Gar Res Tes Gar Acc Gar Acc Com Total Allies 299 | . . 1 . . . . 1 . 1 . 1 . . 9 6 6 1 19 . 9 4 11 13 18 1 18 . 13 4 15 7 4 19 12 12 6 9 1 39 27 12 Largest Group 25 | . . 1 1 . . . 1 1 2 2 1 1 . 8 5 2 1 19 17 13 2 6 5 5 5 23 22 16 4 4 6 3 4 4 2 4 6 2 25 25 6 Highest-Rated Group 1497 | . . 31 31 . . . 10 10 20 20 14 14 . 244 138 117 29 702 602 487 76 231 205 269 286 919 863 707 237 187 251 344 498 288 100 166 300 81 1487 1497 463 Highest-Rated Ally 344 | . . 31 31 . . . 10 10 10 10 14 14 . 32 32 85 29 50 46 47 49 64 64 85 77 77 77 116 112 58 64 344 344 95 64 62 64 45 89 219 215 Total Orders 106 | . . . . . . . 4 10 8 7 1 1 . 2 3 1 . . . 1 1 6 3 6 . . . 2 3 . 1 . . . 3 11 5 4 3 4 16 STAY 48 | . . . . . . . 2 5 3 4 . 1 . 1 1 1 . . . . 1 3 1 3 . . . 1 1 . . . . . 1 5 3 2 2 1 6 ROAM 2 | . . . . . . . . . . . . . . . . . . . . . . . . . . . . . . . . . . . . . . . . . 2 FOLLOW 37 | . . . . . . . 2 5 5 3 . . . 1 1 . . . . . . 3 1 3 . . . . 1 . . . . . 1 4 1 1 1 1 3 AID 18 | . . . . . . . . . . . 1 . . . 1 . . . . 1 . . 1 . . . . 1 1 . . . . . 1 2 1 1 . 2 5 DROP 1 | . . . . . . . . . . . . . . . . . . . . . . . . . . . . . . . 1 . . . . . . . . . . Ally Attacks 1708 | . . 5 50 . . . . . . . . . . 68 26 23 6 . 97 110 3 103 33 122 . 97 86 158 7 22 55 11 111 46 18 23 41 . 92 216 79 Total Damage 53817 | . . 40 736 . . . . . . . . . . 1794 970 871 56 . 1681 2701 99 3123 894 3395 . 3505 1657 5492 398 621 1147 123 4591 1153 532 570 955 . 2638 6887 7188 Kills 322 | . . 2 10 . . . . . . . . . . 17 12 7 1 . 16 22 . 26 4 20 . 6 9 32 4 3 9 1 34 5 5 1 3 . 16 36 21 Allies Corrupted 35 | . . . . . . . . . . . . . . . 2 . . . . . . 1 5 2 . . 1 . . 3 2 1 1 . 1 2 . . . 12 2 Allies Melted 8 | . . . . . . . . . . . . . . . . . . . . 1 . 1 . 1 . . . 2 . . . . . . . . . . . 3 . Intel | -11 -10 -10 -9 -9 -9 -8 -8 -8 -8 -8 -7 -7 -7 -7 -7 -7 -6 -6 -6 -6 -5 -5 -5 -5 -4 -4 -4 -4 -4 -4 -3 -3 -3 -3 -2 -2 -2 -1 -1 -1 -1 ------- Run | Yrd Mat Min Mat Min Exi Min Mat Gar Mat Gar Fac Was Fac Gar Fac Gar Fac Was Fac Gar Fac Gar Fac Gar Fac Was Fac Gar Fac Gar Res Qua Sec Gar Res Tes Gar Acc Gar Acc Com Active Infowar (turns) 4191 | . . 43 . . . . . . . . 1551 14 . . . . . . . 2 832 5 27 . . . . . . . . . . . . . . . . 478 1239 Optics 1717 | . . . . . . . . . . . . . . . . . . . . . . . . . . . . . . . . . . . . . . . . 478 1239 Sensors 2468 | . . 43 . . . . . . . . 1547 14 . . . . . . . . 832 5 27 . . . . . . . . . . . . . . . . . . A.S.S. 2 | . . . . . . . . . . . . . . . . . . . . 2 . . . . . . . . . . . . . . . . . . . . . Jamming 4 | . . . . . . . . . . . 4 . . . . . . . . . . . . . . . . . . . . . . . . . . . . . . Robot Analysis Total 4 | . 1 . . 1 . . . . 1 . . . . . . . . . . . . . . . . . . . 1 . . . . . . . . . . . . Derelict Logs Recovered 2 | . . 1 . 1 . . . . . . . . . . . . . . . . . . . . . . . . . . . . . . . . . . . . . Drone Launches . | . . . . . . . . . . . . . . . . . . . . . . . . . . . . . . . . . . . . . . . . . . Drone Recoveries . | . . . . . . . . . . . . . . . . . . . . . . . . . . . . . . . . . . . . . . . . . . Exploration | -11 -10 -10 -9 -9 -9 -8 -8 -8 -8 -8 -7 -7 -7 -7 -7 -7 -6 -6 -6 -6 -5 -5 -5 -5 -4 -4 -4 -4 -4 -4 -3 -3 -3 -3 -2 -2 -2 -1 -1 -1 -1 ------------- Run | Yrd Mat Min Mat Min Exi Min Mat Gar Mat Gar Fac Was Fac Gar Fac Gar Fac Was Fac Gar Fac Gar Fac Gar Fac Was Fac Gar Fac Gar Res Qua Sec Gar Res Tes Gar Acc Gar Acc Com Turns Passed 62091 | 82 1079 923 2788 1469 350 837 3086 1620 2469 1063 1680 485 416 1709 987 1803 670 1065 669 1866 1019 1697 1282 2060 327 729 709 1919 416 1704 1559 1922 2433 915 2002 1805 1415 852 1635 3600 4975 Spaces Moved 29856 | 48 568 558 1280 659 217 506 1287 678 1071 406 756 126 188 726 535 867 336 357 335 816 485 873 622 934 184 316 205 985 212 778 708 1022 1322 431 963 1061 814 415 932 1990 2284 Core 4 | 4 . . . . . . . . . . . . . . . . . . . . . . . . . . . . . . . . . . . . . . . . . Treads 29852 | 44 568 558 1280 659 217 506 1287 678 1071 406 756 126 188 726 535 867 336 357 335 816 485 873 622 934 184 316 205 985 212 778 708 1022 1322 431 963 1061 814 415 932 1990 2284 Legs . | . . . . . . . . . . . . . . . . . . . . . . . . . . . . . . . . . . . . . . . . . . Wheels . | . . . . . . . . . . . . . . . . . . . . . . . . . . . . . . . . . . . . . . . . . . Hover . | . . . . . . . . . . . . . . . . . . . . . . . . . . . . . . . . . . . . . . . . . . Flight . | . . . . . . . . . . . . . . . . . . . . . . . . . . . . . . . . . . . . . . . . . . Fastest Speed 50 | 50 160 160 160 160 160 160 160 195 195 198 195 197 197 150 160 160 160 160 160 160 160 160 160 160 165 165 165 165 165 165 155 155 160 160 141 141 138 138 138 138 143 Average Speed 164 | 150 160 160 160 160 160 160 199 195 196 198 195 197 197 181 160 160 160 211 165 175 160 160 160 181 165 165 165 165 165 170 157 155 160 160 153 141 140 138 138 140 153 Slowest Speed 248 | 160 160 160 160 160 160 160 226 200 198 198 197 197 197 197 240 240 160 240 240 240 160 160 160 243 165 165 165 165 165 248 165 160 160 160 240 141 141 138 138 225 235 Overloaded Moves . | . . . . . . . . . . . . . . . . . . . . . . . . . . . . . . . . . . . . . . . . . . Propulsion Burnouts . | . . . . . . . . . . . . . . . . . . . . . . . . . . . . . . . . . . . . . . . . . . Robots Hopped . | . . . . . . . . . . . . . . . . . . . . . . . . . . . . . . . . . . . . . . . . . . Potential Cave-ins 17 | . . . . . . . . . . . . . . . . . . . . . . . . . . . . . . . . . . . 4 . . . . 13 . Cave-ins Triggered 1 | . . . . . . . . . . . . . . . . . . . . . . . . . . . . . . . . . . . . . . . . 1 . Exploration Rate (%) 59 | 4 96 95 98 99 60 96 68 68 60 65 19 77 4 90 20 74 18 86 21 92 15 90 30 89 8 90 9 92 10 74 27 92 76 69 46 90 72 14 92 72 46 Regions Visited 41 Branch Regions 8 Pre-discovered Areas 11 | . 3 1 5 . 1 . 1 . . . . . . . . . . . . . . . . . . . . . . . . . . . . . . . . . . Known Exits Taken 16 | . . 1 . . . 1 1 . 1 . . . 1 . 1 . . . 1 . 1 . 1 . . . 1 . 1 . 1 . 1 . 1 1 . 1 . . . Unknown Exits Taken 7 | 1 1 . 1 1 1 . . . . . . . . . . . . . . . . . . . . . . . . . . 1 . . . . . . . 1 . Scrap Searched 6 | . . 2 . 1 . 3 . . . . . . . . . . . . . . . . . . . . . . . . . . . . . . . . . . . Spaces Dug 132 | . . . . . . . 7 . 6 . 4 . . . 10 . 2 . 1 . 4 . 3 . 3 . . 2 . . 2 1 10 1 17 3 4 . 2 31 19 Terrain Destroyed 1234 | . 5 17 58 22 . 38 7 20 14 52 34 . . 43 28 22 11 11 1 95 6 63 15 48 6 1 23 5 18 35 10 21 25 6 52 20 12 1 6 167 216 Melee 17 | . . . . . . . 7 . 6 . 4 . . . . . . . . . . . . . . . . . . . . . . . . . . . . . . Projectile 349 | . . . . . . . . . 8 . . . . . 9 . 7 11 1 4 6 16 10 8 6 1 . 5 3 10 10 15 25 6 47 17 12 1 6 86 19 AOE 868 | . 5 17 58 22 . 38 . 20 . 52 30 . . 43 19 22 4 . . 91 . 47 5 40 . . 23 . 15 25 . 6 . . 5 3 . . . 81 197 Terrain Rammed . | . . . . . . . . . . . . . . . . . . . . . . . . . . . . . . . . . . . . . . . . . . Walls Destroyed . | . . . . . . . . . . . . . . . . . . . . . . . . . . . . . . . . . . . . . . . . . . Machines Disabled . | . . . . . . . . . . . . . . . . . . . . . . . . . . . . . . . . . . . . . . . . . . Actions | -11 -10 -10 -9 -9 -9 -8 -8 -8 -8 -8 -7 -7 -7 -7 -7 -7 -6 -6 -6 -6 -5 -5 -5 -5 -4 -4 -4 -4 -4 -4 -3 -3 -3 -3 -2 -2 -2 -1 -1 -1 -1 --------- Run | Yrd Mat Min Mat Min Exi Min Mat Gar Mat Gar Fac Was Fac Gar Fac Gar Fac Was Fac Gar Fac Gar Fac Gar Fac Was Fac Gar Fac Gar Res Qua Sec Gar Res Tes Gar Acc Gar Acc Com Total 40392 | 54 660 575 1852 1026 221 522 1633 888 1339 534 878 221 209 932 615 1108 424 525 448 1053 696 1054 839 1193 201 508 551 1199 266 1003 1139 1348 1624 650 1475 1372 1084 692 1286 2775 3720 Wait 5272 | . 30 . 403 328 . . 204 113 182 25 41 2 5 20 9 75 39 57 87 51 149 48 109 22 2 176 322 36 20 52 327 121 40 63 270 102 79 221 135 308 999 Move 29823 | 47 567 557 1279 658 216 505 1287 677 1071 405 756 125 188 725 535 866 336 356 335 815 484 872 621 933 184 315 205 984 211 777 707 1021 1321 430 962 1060 813 415 931 1988 2283 Hop . | . . . . . . . . . . . . . . . . . . . . . . . . . . . . . . . . . . . . . . . . . . Pick Up 361 | . 10 4 18 1 3 1 9 10 5 6 5 . . 15 4 18 5 6 4 14 1 12 7 31 1 3 3 20 2 16 5 16 15 10 10 18 11 1 12 9 20 Fast Attach 150 | 6 1 1 4 . . . 3 . . 3 3 1 1 7 . 2 . 5 2 10 9 . 5 4 . . . 6 2 3 7 1 5 4 5 13 5 1 2 9 20 Attach 183 | . 1 1 3 3 . . 4 . 8 3 3 1 . 5 3 9 3 1 . 4 5 5 8 15 3 . 1 2 2 5 3 9 8 5 5 7 3 2 2 18 23 Detach 78 | . 1 . 3 . . . 1 . 4 1 1 . . 3 . 2 . . . 3 2 . 4 5 1 . . . 1 1 1 1 4 2 1 4 1 . 2 10 19 Swap 552 | . . 4 19 4 . 3 13 16 10 21 18 8 2 23 13 29 13 5 5 18 10 22 17 23 2 2 7 22 3 26 17 20 31 11 28 14 11 3 14 33 12 Drop 299 | . 1 . 23 1 2 1 13 6 4 3 4 1 1 11 1 5 1 16 7 16 4 5 4 20 . . 1 22 . 10 5 11 8 4 7 27 10 1 9 14 20 Fire 3349 | . 46 6 89 22 . 6 77 38 45 46 37 78 11 64 44 94 27 79 7 108 27 89 56 126 7 12 11 105 22 107 62 142 186 118 181 122 150 48 179 370 305 Melee 109 | . . . . . . . 10 8 6 21 4 . . 53 . 7 . . . . . . . . . . . . . . . . . . . . . . . . . Ram . | . . . . . . . . . . . . . . . . . . . . . . . . . . . . . . . . . . . . . . . . . . Kick . | . . . . . . . . . . . . . . . . . . . . . . . . . . . . . . . . . . . . . . . . . . Crush 130 | 1 3 2 11 9 . 3 12 . 4 . 6 5 1 . 6 . . . 1 . 4 . 7 4 1 . 1 . 2 1 3 5 3 . 4 3 . . . 11 17 Escape Stasis 26 | . . . . . . . . 2 . . . . . 6 . . . . . 2 . . . 5 . . . 2 . 4 . . . . . . . . . 5 . Rewire 42 | . . . . . . 3 . . . . . . . . . 1 . . . 12 1 1 1 5 . . . . 1 1 2 1 3 3 2 2 1 . . . 2 Trap 18 | . . . . . . . . 18 . . . . . . . . . . . . . . . . . . . . . . . . . . . . . . . . . Miscellaneous . | . . . . . . . . . . . . . . . . . . . . . . . . . . . . . . . . . . . . . . . . . . Route ------- -11/Scrapyard -10/Materials (discovered 5 exits: *Mat x3 / [*Min] / *Sub) -10/Mines (discovered 3 exits: *Mat x2 / Sub) -9/Materials (discovered 7 exits: *Mat x3 / *Min x2 / *Sto x2) -9/Mines (discovered 3 exits: *Mat x2 / *Exi) -9/Exiles -8/Mines (discovered 2 exits: *Mat x2) -8/Materials (discovered 4 exits: *Fac x3 / Gar) -8/Garrison (discovered 3 exits: *Mat x3) -8/Materials (discovered 3 exits: *Fac x2 / Gar) -8/Garrison (discovered 3 exits: *Fac x3) -7/Factory (discovered 2 exits: *Fac / [*Low]) -7/Waste -7/Factory (discovered 3 exits: [*Low x2] / Gar) -7/Garrison (discovered 3 exits: *Fac x3) -7/Factory -7/Garrison (discovered 2 exits: *Fac x2) -6/Factory -6/Waste -6/Factory (discovered 2 exits: [*Low] / Gar) -6/Garrison (discovered 3 exits: *Fac x3) -5/Factory (discovered 2 exits: *Fac / Gar) -5/Garrison (discovered 4 exits: *Fac x3 / *Fac) -5/Factory (discovered 2 exits: *Fac / Gar) -5/Garrison (discovered 3 exits: *Fac x3) -4/Factory -4/Waste -4/Factory -4/Garrison (discovered 3 exits: *Fac x3) -4/Factory -4/Garrison (discovered 3 exits: *Res x3) -3/Research (discovered 3 exits: Arm / *Qua x2) -3/Quarantine (discovered 3 exits: *Res / *Sec / [*Frg]) -3/Section 7 (discovered 2 exits: *Res / Gar) -3/Garrison (discovered 3 exits: *Res x3) -2/Research (discovered 3 exits: *Acc / *Tes x2) -2/Testing (discovered 2 exits: *Acc / Gar) -2/Garrison (discovered 3 exits: *Acc x3) -1/Access -1/Garrison (discovered 3 exits: [*Acc x3]) -1/Access -1/Command (discovered 2 exits: [*Sur x2]) 0b11 Command History --------- Turn | Location | Event 32 | -11/Scrapyard | Discovered new exit (range 16) 83 | -11/Scrapyard | Entered Materials 84 | -10/Materials | Met a group of wandering Federalists 230 | -10/Materials | Discovered new exit (range 15) 314 | -10/Materials | Build established: Mutant 382 | -10/Materials | Discovered new exit (range 10) 388 | -10/Materials | Discovered new exit (range 9) 435 | -10/Materials | Learned location of Mines (-8) 457 | -10/Materials | Discovered new exit (range 16) 497 | -10/Materials | Learned 2 Storage zone layouts 547 | -10/Materials | Discovered new exit (range 16) 591 | -10/Materials | Learned 4 Recycling zone layouts 622 | -10/Materials | Learned Storage trap positions 642 | -10/Materials | Learned location of 2 exits from Mines 694 | -10/Materials | Learned Storage trap positions 1162 | -10/Materials | Entered Mines 1163 | -10/Mines | Identified exit to Materials 1164 | -10/Mines | Identified exit to Subcaves 1182 | -10/Mines | Met a Derelict bent on vengeance 1191 | -10/Mines | Escorted by a lone wolf Derelict 1211 | -10/Mines | Learned location of Storage (-9) 1406 | -10/Mines | Received a Rocket Launcher from a helpful Derelict 1678 | -10/Mines | Learned Materials stockpile data 2028 | -10/Mines | Found a damaged Exp. Sensor Array with a note attached 2039 | -10/Mines | Found Prototype Device 2041 | -10/Mines | Identified Exp. Sensor Array 2085 | -10/Mines | Entered Materials 2085 | -9/Materials | Accompanied by 1 ally 2085 | -9/Materials | Evolved 2 slots: Propulsion x1, Utility x1 2086 | -9/Materials | Identified exit to Storage 2363 | -9/Materials | Destroyed 7 combat bots 2610 | -9/Materials | Discovered new exit (range 12) 2869 | -9/Materials | Discovered new exit (range 10) 3178 | -9/Materials | Discovered new exit (range 8) 3259 | -9/Materials | Discovered new exit (range 9) 3262 | -9/Materials | Build established: Scavenger-Mutant 3387 | -9/Materials | Identified exit to Materials 3445 | -9/Materials | Learned location of Mines (-9) 3495 | -9/Materials | Learned location of 2 exits from Materials 3568 | -9/Materials | Learned Storage stockpile data 3591 | -9/Materials | Learned Storage garrison access intel 3604 | -9/Materials | Learned location of 2 exits from Materials 3616 | -9/Materials | Central database locked down 3627 | -9/Materials | Learned location of Zion (-6) 3661 | -9/Materials | Learned Storage trap positions 4085 | -9/Materials | First assault squad dispatched 4152 | -9/Materials | Build established: Mutant 4805 | -9/Materials | Sterilization system engaged 4805 | -9/Materials | Non-combat units ordered to evacuate 4873 | -9/Materials | Entered Mines 4945 | -9/Mines | Assembled infested the area 5513 | -9/Mines | Discovered exit to Materials (range 6) 5609 | -9/Mines | Learned 2 Materials zone layouts 5726 | -9/Mines | Deemed a non-threat by the Exiles lab entrance 5858 | -9/Mines | Core integrity fell below 50% 5892 | -9/Mines | Lost 3 parts (1u2w) 6335 | -9/Mines | Discovered new exit (range 5) 6342 | -9/Mines | Entered Exiles 6382 | -9/Exiles | Met 8R-AWN 6408 | -9/Exiles | Met EX-HEX 6451 | -9/Exiles | Met EX-BIN 6472 | -9/Exiles | Aligned with FarCom system 6474 | -9/Exiles | Given EX-Vault access code 6512 | -9/Exiles | Opened EX-Vault 6520 | -9/Exiles | Found Trap Reconfigurator 6523 | -9/Exiles | Found PSU Rigger 6531 | -9/Exiles | Found AWS/Thermal 6562 | -9/Exiles | Warned to stay clear of 0b10 Research branches 6609 | -9/Exiles | Met EX-DEC 6679 | -9/Exiles | Discovered new exit (range 10) 6692 | -9/Exiles | Stole two prototypes: Trap Reconfigurator, AWS/Thermal 6692 | -9/Exiles | Entered Mines 6720 | -8/Mines | Discovered exit to Materials (range 4) 7355 | -8/Mines | Discovered exit to Materials (range 11) 7529 | -8/Mines | Entered Materials 7529 | -8/Materials | Evolved 2 slots: Utility x2 7530 | -8/Materials | Identified exit to Factory 7761 | -8/Materials | Garrison activated, responded to threat 8052 | -8/Materials | Destroyed 8 combat bots 8493 | -8/Materials | Build established: Scavenger-Mutant 8698 | -8/Materials | Learned Storage garrison access intel 8741 | -8/Materials | Learned location of 1 exit from Storage 8772 | -8/Materials | Learned location of Lower Caves (-6) 8809 | -8/Materials | Learned location of 1 exit from Extension 8811 | -8/Materials | Learned Storage stockpile data 8825 | -8/Materials | Learned Storage stockpile data 8847 | -8/Materials | Learned Factory stockpile data 8881 | -8/Materials | Learned Storage non-interactive machine intel 9447 | -8/Materials | Garrison activated, responded to threat 9671 | -8/Materials | Central database locked down 9930 | -8/Materials | Garrison activated, responded to threat 9968 | -8/Materials | Build established: Scientist-Mutant 10601 | -8/Materials | Identified exit to Garrison 10615 | -8/Materials | Entered Garrison 10615 | -8/Garrison | Accompanied by 1 ally 10687 | -8/Garrison | Triggered checkpoint 10828 | -8/Garrison | Triggered checkpoint 10849 | -8/Garrison | Triggered checkpoint 10860 | -8/Garrison | Triggered checkpoint 10876 | -8/Garrison | Destroyed 8 combat bots 10950 | -8/Garrison | Triggered checkpoint 10991 | -8/Garrison | Garrison Relay disabled 11395 | -8/Garrison | Discovered new exit (range 10) 11683 | -8/Garrison | Discovered new exit (range 22) 11683 | -8/Garrison | Discovered new exit (range 38) 11683 | -8/Garrison | Discovered new exit (range 47) 11861 | -8/Garrison | Installed Relay Interface Framework 12022 | -8/Garrison | Phase Generator disabled 12041 | -8/Garrison | Found Powered Armor 12044 | -8/Garrison | Found Powered Armor 12047 | -8/Garrison | Found Powered Armor 12052 | -8/Garrison | Found Powered Armor 12056 | -8/Garrison | Found Powered Armor 12235 | -8/Garrison | Entered Materials 12235 | -8/Materials | Accompanied by 1 ally 12469 | -8/Materials | Build established: Bothacker-Mutant 12664 | -8/Materials | Garrison activated, responded to threat 12725 | -8/Materials | Destroyed 9 combat bots 12778 | -8/Materials | Repaired Hardlight Generator? 12779 | -8/Materials | AWS/Thermal suddenly broke down 13101 | -8/Materials | Build established: Scientist-Mutant 13104 | -8/Materials | Discovered exit to Factory (range 11) 13355 | -8/Materials | Central database locked down 13754 | -8/Materials | Garrison activated, responded to threat 14704 | -8/Materials | Identified exit to Garrison 14704 | -8/Materials | Entered Garrison 14704 | -8/Garrison | Accompanied by 2 allies 14760 | -8/Garrison | Expanded RIF knowledge: Signal Jamming 14935 | -8/Garrison | Discovered exit to Factory (range 35) 14935 | -8/Garrison | Discovered exit to Factory (range 53) 14935 | -8/Garrison | Discovered exit to Factory (range 64) 15013 | -8/Garrison | Triggered checkpoint 15038 | -8/Garrison | Triggered checkpoint 15046 | -8/Garrison | Core integrity fell below 50% 15326 | -8/Garrison | Garrison Relay disabled 15508 | -8/Garrison | Build established: Bothacker-Mutant 15592 | -8/Garrison | Garrison Relay disabled 15634 | -8/Garrison | Triggered checkpoint 15767 | -8/Garrison | Entered Factory 15767 | -7/Factory | Evolved 2 slots: Propulsion x1, Utility x1 15769 | -7/Factory | FarCom data flow suspended 16231 | -7/Factory | Discovered new exit (range 5) 16666 | -7/Factory | Discovered new exit (range 12) 17447 | -7/Factory | Sucked down chute 17447 | -7/Factory | Entered Waste 17452 | -7/Waste | 1 allies followed down the chute 17462 | -7/Waste | EMP discharged 17478 | -7/Waste | Spotted C-40 Crusher 17490 | -7/Waste | Spotted C-40 Crusher 17506 | -7/Waste | Spotted C-40 Crusher 17507 | -7/Waste | Spotted C-40 Crusher 17508 | -7/Waste | Spotted C-40 Crusher 17536 | -7/Waste | Spotted C-40 Crusher 17562 | -7/Waste | EMP discharged 17662 | -7/Waste | EMP discharged 17662 | -7/Waste | System corruption reached 10% 17745 | -7/Waste | Destroyed C-40 Crusher 17762 | -7/Waste | EMP discharged 17832 | -7/Waste | Destroyed C-40 Crusher 17862 | -7/Waste | EMP discharged 17862 | -7/Waste | System corruption reached 30% 17907 | -7/Waste | Destroyed C-40 Crusher 17910 | -7/Waste | Discovered new exit (range 11) 17932 | -7/Waste | Entered Factory 18174 | -7/Factory | Discovered new exit (range 8) 18295 | -7/Factory | Discovered new exit (range 12) 18348 | -7/Factory | Identified exit to Garrison 18348 | -7/Factory | Entered Garrison 18354 | -7/Garrison | Triggered checkpoint 18450 | -7/Garrison | Garrison Relay disabled 18578 | -7/Garrison | Triggered checkpoint 18583 | -7/Garrison | Triggered checkpoint 18670 | -7/Garrison | Triggered checkpoint 18752 | -7/Garrison | Garrison Relay disabled 18788 | -7/Garrison | Discovered new exit (range 8) 19087 | -7/Garrison | Garrison Relay disabled 19176 | -7/Garrison | Triggered checkpoint 19230 | -7/Garrison | Triggered checkpoint 19365 | -7/Garrison | Discovered new exit (range 14) 19662 | -7/Garrison | Triggered checkpoint 19716 | -7/Garrison | Triggered checkpoint 19788 | -7/Garrison | Expanded RIF knowledge: Zone Cloak 19816 | -7/Garrison | Triggered checkpoint 19842 | -7/Garrison | Garrison Relay disabled 19983 | -7/Garrison | Garrison Relay disabled 20022 | -7/Garrison | Discovered new exit (range 5) 20057 | -7/Garrison | Entered Factory 20057 | -7/Factory | Accompanied by 4 allies 20129 | -7/Factory | Repaired Imp. Heavy Treads? 20362 | -7/Factory | Lost 3 allies 20786 | -7/Factory | Core integrity fell below 50% 20787 | -7/Factory | Destroyed 7 combat bots 21038 | -7/Factory | Identified exit to Garrison 21044 | -7/Factory | Entered Garrison 21044 | -7/Garrison | Accompanied by 2 allies 21084 | -7/Garrison | Expanded RIF knowledge: Watcher Feeds 21164 | -7/Garrison | Triggered checkpoint 21192 | -7/Garrison | Garrison Relay disabled 21366 | -7/Garrison | Build established: Botlord-Mutant 21452 | -7/Garrison | Triggered checkpoint 21456 | -7/Garrison | Triggered checkpoint 21538 | -7/Garrison | Triggered checkpoint 21580 | -7/Garrison | Garrison Relay disabled 21638 | -7/Garrison | Discovered new exit (range 10) 21725 | -7/Garrison | Triggered checkpoint 21739 | -7/Garrison | Triggered checkpoint 21858 | -7/Garrison | Triggered checkpoint 21901 | -7/Garrison | Garrison Relay disabled 22119 | -7/Garrison | Spotted B-75 Beast 22119 | -7/Garrison | Spotted B-75 Beast 22148 | -7/Garrison | Triggered checkpoint 22279 | -7/Garrison | Garrison Relay disabled 22319 | -7/Garrison | Garrison Relay disabled 22447 | -7/Garrison | Discovered new exit (range 3) 22515 | -7/Garrison | Triggered checkpoint 22567 | -7/Garrison | Destroyed B-75 Beast 22570 | -7/Garrison | Destroyed B-75 Beast 22847 | -7/Garrison | Entered Factory 22847 | -6/Factory | Evolved 2 slots: Power x1, Utility x1 22917 | -6/Factory | Found Exp. Targeting Computer 23517 | -6/Factory | Sucked down chute 23517 | -6/Factory | Entered Waste 23561 | -6/Waste | Spotted C-40 Crusher 23568 | -6/Waste | Spotted C-40 Crusher 23576 | -6/Waste | Spotted C-40 Crusher 23579 | -6/Waste | Spotted C-40 Crusher 23585 | -6/Waste | Spotted C-40 Crusher 23620 | -6/Waste | Spotted C-40 Crusher 23651 | -6/Waste | Destroyed C-40 Crusher 23813 | -6/Waste | Destroyed C-40 Crusher 23844 | -6/Waste | Destroyed C-40 Crusher 23980 | -6/Waste | Destroyed C-40 Crusher 24098 | -6/Waste | Destroyed C-40 Crusher 24127 | -6/Waste | Destroyed C-40 Crusher 24169 | -6/Waste | Warlord forces began an assault 24527 | -6/Waste | Discovered new exit (range 12) 24582 | -6/Waste | Entered Factory 24582 | -6/Factory | Accompanied by 17 allies 24649 | -6/Factory | Lost 3 allies 24743 | -6/Factory | Discovered new exit (range 25) 25162 | -6/Factory | Identified exit to Garrison 25250 | -6/Factory | Garrison activated, responded to threat 25251 | -6/Factory | Entered Garrison 25251 | -6/Garrison | Accompanied by 13 allies 25350 | -6/Garrison | Lost 5 allies 25405 | -6/Garrison | Triggered checkpoint 25443 | -6/Garrison | Triggered checkpoint 25531 | -6/Garrison | Lost 7 allies 25571 | -6/Garrison | Phase Generator disabled 25625 | -6/Garrison | Heavy support dispatched to Factory 25769 | -6/Garrison | Garrison Relay disabled 25871 | -6/Garrison | Triggered checkpoint 25889 | -6/Garrison | Triggered checkpoint 25913 | -6/Garrison | Discovered new exit (range 13) 25941 | -6/Garrison | Lost 4 allies 25983 | -6/Garrison | Triggered checkpoint 25997 | -6/Garrison | Triggered checkpoint 26156 | -6/Garrison | Build established: Bothacker-Mutant 26166 | -6/Garrison | Garrison Relay disabled 26187 | -6/Garrison | Garrison Relay disabled 26253 | -6/Garrison | H-XX Assembler disabled 26315 | -6/Garrison | Found Prototype Device 26315 | -6/Garrison | Identified Active Sensor Suite 26462 | -6/Garrison | Build established: Botlord-Mutant 26576 | -6/Garrison | Expanded RIF knowledge: Command Fork 26709 | -6/Garrison | Discovered new exit (range 15) 26839 | -6/Garrison | Triggered checkpoint 26972 | -6/Garrison | Triggered checkpoint 27039 | -6/Garrison | Garrison Relay disabled 27098 | -6/Garrison | Discovered new exit (range 13) 27117 | -6/Garrison | Entered Factory 27117 | -5/Factory | Evolved 2 slots: Propulsion x1, Utility x1 27399 | -5/Factory | Central database locked down 27417 | -5/Factory | First assault squad dispatched 27970 | -5/Factory | Discovered new exit (range 14) 28009 | -5/Factory | Identified exit to Garrison 28136 | -5/Factory | Entered Garrison 28136 | -5/Garrison | Accompanied by 2 allies 28188 | -5/Garrison | Triggered checkpoint 28260 | -5/Garrison | Discovered new exit (range 5) 28304 | -5/Garrison | Triggered checkpoint 28326 | -5/Garrison | Garrison Relay disabled 28429 | -5/Garrison | Triggered checkpoint 28458 | -5/Garrison | Triggered checkpoint 28495 | -5/Garrison | Triggered checkpoint 28647 | -5/Garrison | Discovered new exit (range 12) 28704 | -5/Garrison | Triggered checkpoint 28964 | -5/Garrison | Garrison Relay disabled 28980 | -5/Garrison | Lost 4 allies 29174 | -5/Garrison | Discovered new exit (range 15) 29212 | -5/Garrison | Triggered checkpoint 29245 | -5/Garrison | Garrison Relay disabled 29309 | -5/Garrison | Expanded RIF knowledge: Alert ID Control 29338 | -5/Garrison | Learned Factory security intel 29536 | -5/Garrison | Garrison Relay disabled 29556 | -5/Garrison | Triggered checkpoint 29572 | -5/Garrison | Spotted Executioner 29574 | -5/Garrison | Spotted Executioner 29586 | -5/Garrison | Destroyed Executioner 29598 | -5/Garrison | Destroyed Executioner 29655 | -5/Garrison | Discovered new exit (range 13) 29833 | -5/Garrison | Entered Factory 29833 | -5/Factory | Accompanied by 1 ally 30278 | -5/Factory | P-70 Sage assimilated allied Archangel 6a 30409 | -5/Factory | Discovered new exit (range 16) 30514 | -5/Factory | P-70 Sage assimilated allied G-50 Soldier 30538 | -5/Factory | Lost 4 allies 30733 | -5/Factory | First assault squad dispatched 31090 | -5/Factory | Identified exit to Garrison 31115 | -5/Factory | Entered Garrison 31115 | -5/Garrison | Accompanied by 3 allies 31222 | -5/Garrison | Garrison Relay disabled 31253 | -5/Garrison | Spotted B-75 Beast 31269 | -5/Garrison | Destroyed B-75 Beast 31454 | -5/Garrison | Rescued a captive Derelict 31456 | -5/Garrison | Rescued a captive Derelict 31603 | -5/Garrison | Spotted B-75 Beast 31637 | -5/Garrison | Triggered checkpoint 31639 | -5/Garrison | Allies destroyed B-75 Beast 31641 | -5/Garrison | Triggered checkpoint 31653 | -5/Garrison | Triggered checkpoint 31677 | -5/Garrison | System corruption reached 10% 31705 | -5/Garrison | Lost 4 allies 31715 | -5/Garrison | Core integrity fell below 50% 31738 | -5/Garrison | Lost 5 parts (2n2u1w) 31743 | -5/Garrison | Destroyed 8 combat bots 32063 | -5/Garrison | Triggered checkpoint 32137 | -5/Garrison | Garrison Relay disabled 32179 | -5/Garrison | Triggered checkpoint 32305 | -5/Garrison | Expanded RIF knowledge: Code Merge 32317 | -5/Garrison | Discovered new exit (range 13) 32384 | -5/Garrison | Spotted B-75 Beast 32438 | -5/Garrison | Destroyed B-75 Beast 32454 | -5/Garrison | Lost 5 allies 32707 | -5/Garrison | Triggered checkpoint 32793 | -5/Garrison | Found embedded Infiltrators 32815 | -5/Garrison | Discovered new exit (range 11) 32865 | -5/Garrison | Triggered checkpoint 32878 | -5/Garrison | Garrison Relay disabled 33033 | -5/Garrison | Triggered checkpoint 33054 | -5/Garrison | Garrison Relay disabled 33089 | -5/Garrison | Discovered new exit (range 76) 33089 | -5/Garrison | Discovered new exit (range 51) 33089 | -5/Garrison | Discovered new exit (range 18) 33175 | -5/Garrison | Entered Factory 33175 | -4/Factory | Accompanied by 4 allies 33175 | -4/Factory | Evolved 2 slots: Power x1, Propulsion x1 33473 | -4/Factory | Unchained authorized (DW-4LL) 33502 | -4/Factory | Sucked down chute 33502 | -4/Factory | Entered Waste 33529 | -4/Waste | Spotted C-40 Crusher 33532 | -4/Waste | Spotted C-40 Crusher 33557 | -4/Waste | 4 allies followed down the chute 33557 | -4/Waste | Spotted C-40 Crusher 33557 | -4/Waste | Spotted C-40 Crusher 33561 | -4/Waste | Allies destroyed C-40 Crusher 33563 | -4/Waste | Spotted C-40 Crusher 33582 | -4/Waste | 2 allies followed down the chute 33584 | -4/Waste | Allies destroyed C-40 Crusher 33595 | -4/Waste | Allies destroyed C-40 Crusher 33877 | -4/Waste | Warlord forces began an assault 34159 | -4/Waste | Discovered new exit (range 11) 34231 | -4/Waste | Entered Factory 34231 | -4/Factory | Accompanied by 22 allies 34411 | -4/Factory | Unchained authorized (DW-4LL) 34421 | -4/Factory | Repaired Enh. Nova Cannon 34816 | -4/Factory | DW-4LL burst out of a wall 34849 | -4/Factory | Destroyed DW-4LL 34854 | -4/Factory | Lost 3 allies 34880 | -4/Factory | Found Prototype Ballistic Gun 34905 | -4/Factory | Identified exit to Garrison 34905 | -4/Factory | Identified DW-4LL's Slamshotty 34940 | -4/Factory | Entered Garrison 34940 | -4/Garrison | Accompanied by 16 allies 34996 | -4/Garrison | Triggered checkpoint 35056 | -4/Garrison | Garrison Relay disabled 35098 | -4/Garrison | Expanded RIF knowledge: Crosswire 35215 | -4/Garrison | Spotted B-86 Titan 35218 | -4/Garrison | Triggered checkpoint 35248 | -4/Garrison | Triggered checkpoint 35278 | -4/Garrison | Lost 6 allies 35408 | -4/Garrison | Found Unknown Launcher 35409 | -4/Garrison | Identified Fusion Bomb Launcher 35586 | -4/Garrison | Discovered new exit (range 13) 35616 | -4/Garrison | Triggered checkpoint 35653 | -4/Garrison | Garrison Relay disabled 35716 | -4/Garrison | Triggered checkpoint 35772 | -4/Garrison | Triggered checkpoint 35797 | -4/Garrison | Garrison Relay disabled 35905 | -4/Garrison | Discovered new exit (range 13) 36254 | -4/Garrison | Spotted Executioner 36256 | -4/Garrison | Spotted Executioner 36263 | -4/Garrison | Destroyed Executioner 36269 | -4/Garrison | Destroyed Executioner 36384 | -4/Garrison | Triggered checkpoint 36506 | -4/Garrison | Triggered checkpoint 36519 | -4/Garrison | Discovered new exit (range 11) 36562 | -4/Garrison | Garrison Relay disabled 36592 | -4/Garrison | System corruption reached 10% 36663 | -4/Garrison | Spotted B-86 Titan 36669 | -4/Garrison | Rewired B-86 Titan 36669 | -4/Garrison | Spotted B-75 Beast 36672 | -4/Garrison | Rewired B-86 Titan 36679 | -4/Garrison | Allies destroyed B-86 Titan 36682 | -4/Garrison | Allies destroyed B-75 Beast 36711 | -4/Garrison | Found Quantum Capacitor 36806 | -4/Garrison | Allies destroyed Titan 7a 36818 | -4/Garrison | Found Relay Coupler [Proto] 36821 | -4/Garrison | Found Relay Coupler [Proto] 36859 | -4/Garrison | Entered Factory 36859 | -4/Factory | Accompanied by 1 ally 37248 | -4/Factory | Identified exit to Garrison 37275 | -4/Factory | Entered Garrison 37275 | -4/Garrison | Accompanied by 3 allies 37285 | -4/Garrison | Discovered new exit (range 80) 37285 | -4/Garrison | Discovered new exit (range 79) 37285 | -4/Garrison | Discovered new exit (range 40) 37325 | -4/Garrison | Triggered checkpoint 37383 | -4/Garrison | Garrison Relay disabled 37615 | -4/Garrison | Triggered checkpoint 37624 | -4/Garrison | Triggered checkpoint 37785 | -4/Garrison | Triggered checkpoint 37800 | -4/Garrison | Triggered checkpoint 37889 | -4/Garrison | Triggered checkpoint 37927 | -4/Garrison | Expanded RIF knowledge: Hotswap 37948 | -4/Garrison | Garrison Relay disabled 38216 | -4/Garrison | Triggered checkpoint 38262 | -4/Garrison | Garrison Relay disabled 38356 | -4/Garrison | Lost 4 allies 38384 | -4/Garrison | Destroyed 8 combat bots 38550 | -4/Garrison | Garrison Relay disabled 38577 | -4/Garrison | Triggered checkpoint 38616 | -4/Garrison | Garrison Relay disabled 38944 | -4/Garrison | Rescued a captive Derelict 38944 | -4/Garrison | Rescued a captive Derelict 38973 | -4/Garrison | System corruption reached 30% 38979 | -4/Garrison | Entered Research 38979 | -3/Research | Accompanied by 4 allies 38979 | -3/Research | Evolved 2 slots: Utility x2 39464 | -3/Research | P-80 Master assimilated allied Processor 8a 39729 | -3/Research | First assault squad dispatched 39780 | -3/Research | Identified exit to Armory 39780 | -3/Research | Identified exit to Quarantine 40002 | -3/Research | Found Prototype Processor 40009 | -3/Research | Identified Exp. Signal Interpreter 40088 | -3/Research | P-80 Master assimilated allied Technician 8a 40201 | -3/Research | Lost 3 allies 40538 | -3/Research | Entered Quarantine 40538 | -3/Quarantine | Accompanied by 3 allies 40548 | -3/Quarantine | Identified exit to Research 40599 | -3/Quarantine | Lost 3 allies 40768 | -3/Quarantine | Found Alien Artifact 40817 | -3/Quarantine | System corruption reached 10% 40860 | -3/Quarantine | Identified Core Reset Matrix 41278 | -3/Quarantine | Found Transdimensional Reconstructor 41286 | -3/Quarantine | Found Dimensional Node Initializer 41451 | -3/Quarantine | Found Subatomic Replicator 41686 | -3/Quarantine | Spotted Alpha 7 41883 | -3/Quarantine | Found Alien Artifact 41883 | -3/Quarantine | Identified Phase Redirector 42213 | -3/Quarantine | Destroyed Alpha 7 42266 | -3/Quarantine | Lost 3 parts (1n2u) 42320 | -3/Quarantine | Spotted Fortress 42328 | -3/Quarantine | Assimilated Fortress with formatsys_high 42342 | -3/Quarantine | Unchained authorized (CL-0N3) 42439 | -3/Quarantine | Discovered new exit (range 6) 42439 | -3/Quarantine | Discovered new exit (range 6) 42460 | -3/Quarantine | Entered Section 7 42460 | -3/Section 7 | Accompanied by 1 ally 42522 | -3/Section 7 | Found Alien Artifact 42523 | -3/Section 7 | Identified Spacefold Activator 42612 | -3/Section 7 | Found Integrated Mediator 42613 | -3/Section 7 | Installed Integrated Mediator, increased core attachment efficiency 42636 | -3/Section 7 | P-80 Master assimilated allied Veteran 8b 42731 | -3/Section 7 | Lost 11 allies 43400 | -3/Section 7 | Spotted Executioner 43402 | -3/Section 7 | Spotted Executioner 43408 | -3/Section 7 | Destroyed Executioner 43411 | -3/Section 7 | Destroyed Executioner 43423 | -3/Section 7 | Found Corrupted Exp. Core Analyzer 43545 | -3/Section 7 | Spotted B-99 Colossus 43597 | -3/Section 7 | Found Alien Artifact 43597 | -3/Section 7 | Identified Integrity Redistributor 43597 | -3/Section 7 | Used Integrity Redistributor, redistributed integrity from core (-322) 43655 | -3/Section 7 | Found Alien Artifact 43655 | -3/Section 7 | Identified LRC Insulator 43655 | -3/Section 7 | Installed LRC Insulator, 1 resistance modified: EM +25% 43664 | -3/Section 7 | Found Alien Artifact 43664 | -3/Section 7 | Identified LRC Energy Well 43664 | -3/Section 7 | Installed LRC Energy Well, increased energy storage capacity (+250) 43727 | -3/Section 7 | Found Integrity Redistributor 43729 | -3/Section 7 | Found Integrity Redistributor 43732 | -3/Section 7 | Found Integrity Redistributor 43853 | -3/Section 7 | Garrison activated, responded to threat 44028 | -3/Section 7 | Found Integrity Redistributor 44115 | -3/Section 7 | Identified exit to Garrison 44244 | -3/Section 7 | Spotted B-86 Titan 44247 | -3/Section 7 | Destroyed B-86 Titan 44274 | -3/Section 7 | Discovered exit to Research (range 16) 44279 | -3/Section 7 | Spotted S7 Guard 44296 | -3/Section 7 | Destroyed S7 Guard 44304 | -3/Section 7 | Found Navigation Efficiency Matrix 44312 | -3/Section 7 | Found Corrupted Hvy. Regenerative Plating 44830 | -3/Section 7 | Used Integrity Redistributor, redistributed integrity from core (-87) 44831 | -3/Section 7 | Core integrity fell below 50% 44893 | -3/Section 7 | Entered Garrison 44893 | -3/Garrison | Accompanied by 2 allies 44917 | -3/Garrison | Found embedded Infiltrators 44945 | -3/Garrison | Triggered checkpoint 44973 | -3/Garrison | Garrison Relay disabled 44998 | -3/Garrison | Lost 6 allies 45195 | -3/Garrison | Triggered checkpoint 45198 | -3/Garrison | Triggered checkpoint 45201 | -3/Garrison | Spotted B-86 Titan 45246 | -3/Garrison | Destroyed B-86 Titan 45291 | -3/Garrison | Triggered checkpoint 45307 | -3/Garrison | Triggered checkpoint 45389 | -3/Garrison | Expanded RIF knowledge: Code Merge 45401 | -3/Garrison | Triggered checkpoint 45467 | -3/Garrison | Discovered exit to Research (range 30) 45467 | -3/Garrison | Discovered exit to Research (range 81) 45467 | -3/Garrison | Discovered exit to Research (range 79) 45496 | -3/Garrison | Garrison Relay disabled 45515 | -3/Garrison | Triggered checkpoint 45532 | -3/Garrison | Garrison Relay disabled 45535 | -3/Garrison | System corruption reached 30% 45691 | -3/Garrison | Garrison Relay disabled 45786 | -3/Garrison | Used Integrity Redistributor, redistributed integrity to core (+378) 45808 | -3/Garrison | Entered Research 45808 | -2/Research | Evolved 2 slots: Utility x2 46546 | -2/Research | Garrison activated, responded to threat 46770 | -2/Research | Spotted B-90 Cyclops 46786 | -2/Research | Destroyed B-90 Cyclops 46808 | -2/Research | First assault squad dispatched 47345 | -2/Research | Identified exit to Testing 47455 | -2/Research | Unchained authorized (GL-D0S) 47470 | -2/Research | Discovered new exit (range 16) 47810 | -2/Research | Entered Testing 47810 | -2/Testing | Accompanied by 2 allies 47860 | -2/Testing | Lost 3 allies 47983 | -2/Testing | Found Exp. Hardlight Generator 48008 | -2/Testing | Found Exp. Thermal Defense Suite 48028 | -2/Testing | Found Exp. Core Analyzer 48146 | -2/Testing | Found System Mapper 48423 | -2/Testing | Found SHELL Armor 48491 | -2/Testing | Found Prototype Device 48525 | -2/Testing | Identified Exp. Weapon Cycler 48711 | -2/Testing | Build established: Scavenger-Mutant 48726 | -2/Testing | Found Corrupted Quantum Capacitor 48727 | -2/Testing | System corruption reached 10% 48741 | -2/Testing | Found Prototype Ballistic Cannon 48859 | -2/Testing | Found Prototype Energy Cannon 48859 | -2/Testing | Identified Potential Cannon 48862 | -2/Testing | Found Prototype Energy Cannon 48862 | -2/Testing | Identified Imp. Potential Cannon 48892 | -2/Testing | Identified Perforator 49007 | -2/Testing | Discovered new exit (range 3) 49028 | -2/Testing | Found Prototype Ballistic Cannon 49030 | -2/Testing | Identified Omega Cannon 49591 | -2/Testing | Identified exit to Garrison 49615 | -2/Testing | Entered Garrison 49615 | -2/Garrison | Accompanied by 1 ally 49655 | -2/Garrison | Expanded RIF knowledge: Command Fork 49668 | -2/Garrison | Garrison Relay disabled 49745 | -2/Garrison | Spotted B-90 Cyclops 49757 | -2/Garrison | Destroyed B-90 Cyclops 49781 | -2/Garrison | Triggered checkpoint 49800 | -2/Garrison | Triggered checkpoint 49824 | -2/Garrison | Triggered checkpoint 49831 | -2/Garrison | Triggered checkpoint 49895 | -2/Garrison | Build established: Botlord-Mutant 49939 | -2/Garrison | Triggered checkpoint 50041 | -2/Garrison | Garrison Relay disabled 50076 | -2/Garrison | Discovered new exit (range 5) 50259 | -2/Garrison | Triggered checkpoint 50299 | -2/Garrison | Garrison Relay disabled 50392 | -2/Garrison | Discovered new exit (range 10) 50443 | -2/Garrison | Triggered checkpoint 50459 | -2/Garrison | Triggered checkpoint 50476 | -2/Garrison | Garrison Relay disabled 50637 | -2/Garrison | Triggered checkpoint 50662 | -2/Garrison | Garrison Relay disabled 50709 | -2/Garrison | Discovered new exit (range 8) 50825 | -2/Garrison | Found Relay Coupler [Proto] 50829 | -2/Garrison | Found Relay Coupler [Proto] 50831 | -2/Garrison | Found Relay Coupler [Proto] 51030 | -2/Garrison | Entered Access 51030 | -1/Access | Accompanied by 1 ally 51030 | -1/Access | Evolved 2 slots: Power x1, Utility x1 51252 | -1/Access | Unchained authorized (GL-D0S) 51537 | -1/Access | Spotted B-99 Colossus 51633 | -1/Access | Repaired Imp. Utility Shielding 51688 | -1/Access | Identified exit to Garrison 51882 | -1/Access | Entered Garrison 51882 | -1/Garrison | Accompanied by 1 ally 51915 | -1/Garrison | Triggered checkpoint 52019 | -1/Garrison | Found Relay Coupler [Proto] 52193 | -1/Garrison | Garrison Relay disabled 52234 | -1/Garrison | Spotted B-99 Colossus 52235 | -1/Garrison | Triggered checkpoint 52282 | -1/Garrison | Destroyed B-99 Colossus 52411 | -1/Garrison | Discovered new exit (range 10) 52496 | -1/Garrison | Triggered checkpoint 52551 | -1/Garrison | Garrison Relay disabled 52561 | -1/Garrison | Lost 3 allies 52624 | -1/Garrison | Triggered checkpoint 52625 | -1/Garrison | Triggered checkpoint 52654 | -1/Garrison | Triggered checkpoint 52674 | -1/Garrison | Lost 4 allies 52680 | -1/Garrison | Triggered checkpoint 52693 | -1/Garrison | Garrison Relay disabled 52770 | -1/Garrison | Discovered new exit (range 10) 52802 | -1/Garrison | Triggered checkpoint 52824 | -1/Garrison | Triggered checkpoint 52834 | -1/Garrison | Garrison Relay disabled 52973 | -1/Garrison | Garrison Relay disabled 53003 | -1/Garrison | P-80 Master assimilated allied Enforcer 10d 53218 | -1/Garrison | Discovered new exit (range 12) 53222 | -1/Garrison | Triggered checkpoint 53241 | -1/Garrison | Triggered checkpoint 53337 | -1/Garrison | Expanded RIF knowledge: Autoassimilate 53370 | -1/Garrison | Triggered checkpoint 53388 | -1/Garrison | Garrison Relay disabled 53517 | -1/Garrison | Entered Access 53517 | -1/Access | Accompanied by 24 allies 53603 | -1/Access | Spotted B-99 Colossus 53728 | -1/Access | Unchained authorized (GL-D0S) 53767 | -1/Access | First assault squad dispatched 53967 | -1/Access | Destroyed GL-D0S 53973 | -1/Access | Found Prototype Processor 53973 | -1/Access | Identified Spectral Analyzer 54055 | -1/Access | Lost 16 allies 54184 | -1/Access | P-80 Master assimilated allied Enforcer 10f 54213 | -1/Access | Garrison activated, responded to threat 54315 | -1/Access | Lost 3 allies 54449 | -1/Access | System corruption reached 10% 54830 | -1/Access | Lost 4 allies 55284 | -1/Access | Unchained authorized (QV-33N) 55600 | -1/Access | Lost 3 allies 55643 | -1/Access | Lost 3 allies 55857 | -1/Access | Crushed by falling debris 56414 | -1/Access | System corruption reached 30% 56699 | -1/Access | Spotted B-99 Colossus 56701 | -1/Access | Spotted B-99 Colossus 56702 | -1/Access | Assimilated Colossus 10a with formatsys_high 56705 | -1/Access | Lost 3 parts (1p1n1u) 56705 | -1/Access | Assimilated Colossus 10b with formatsys_high 56777 | -1/Access | Used Integrity Redistributor, redistributed integrity from core (-326) 56778 | -1/Access | Core integrity fell below 50% 56944 | -1/Access | Discovered new exit (range 12) 57117 | -1/Access | Entered Command 57117 | -1/Command | Spotted B-99 Colossus 57881 | -1/Command | Spotted Combat Programmer 57882 | -1/Command | Spotted Combat Programmer 57887 | -1/Command | Combat Programmer assimilated allied Enforcer 10*33 57887 | -1/Command | Destroyed Combat Programmer 57891 | -1/Command | Combat Programmer assimilated allied Enforcer 10*32 57892 | -1/Command | Spotted M Guard 57892 | -1/Command | Spotted M Guard 57897 | -1/Command | Assimilated M Guard with formatsys_high 57911 | -1/Command | Assimilated M Guard with formatsys_high 57927 | -1/Command | Allies destroyed Combat Programmer 58617 | -1/Command | First assault squad dispatched 58981 | -1/Command | Met MAIN.C 58983 | -1/Command | 0b10 Conduit disabled 58998 | -1/Command | Destroyed MAIN.C Shell 59000 | -1/Command | MAIN.C activated Command garrisons 59057 | -1/Command | Destroyed MAIN.C 59081 | -1/Command | Lost 3 parts (2n1u) 59132 | -1/Command | All MAIN.C guards destroyed 59336 | -1/Command | Build established: Generator-Mutant 59856 | -1/Command | Build established: Scavenger-Mutant 60115 | -1/Command | Discovered new exit (range 31) 60115 | -1/Command | Discovered new exit (range 104) 60115 | -1/Command | Extracted map data and part IDs from MAIN.C's data core 60458 | -1/Command | Build established: Generator-Mutant 60486 | -1/Command | Found Zero-point Reactor 60490 | -1/Command | Found Zero-point Reactor 60849 | -1/Command | Found Exp. System Purifier 60853 | -1/Command | Found Spectral Analyzer 62092 | *** | Establishing 0b11! Last Messages --------------- 61491_ Exp. System Purifier purges 1% system corruption (7%). 61505_ Exp. System Purifier purges 1% system corruption (6%). 61508_ System corrupted: Component data lost. 61526_ Exp. System Purifier purges 1% system corruption (5%). 61537_ System corrupted: Heat flow error (+159). 61560_ Exp. System Purifier purges 1% system corruption (4%). 61568_ Exp. System Purifier purges 1% system corruption (3%). 61570_ System corrupted: Matter fused (-7). 61572_ Exp. System Purifier purges 1% system corruption (2%). 61580_ Exp. System Purifier purges 1% system corruption (1%). 61581_ Acquired 1 matter. 61582_ Exp. System Purifier purges 1% system corruption (0%). 61624_ Acquired 6 matter. 61870_ Discarded Relay Coupler [NC]. 61871_ Acquired Relay Coupler [Proto]. 61891_ Acquired 10 matter. 62037_ The Access Shell folds into the floor. 62054_ Acquired Imp. Quantum Reactor. 62061_ Acquired 5 matter. [Achievement: 100k Club] Map ----- +----------------------------------------------------+ | " "" #?# # ""T #??????????????? | | "T #?# # #??????????????? | | ########## =##### #?# ####+###??????????????? | | ###########+############?# #?# ]#??????????????? | | ?# + *%! ==#???### ### #??????????????? | | ?# #### =!|#???# !#! #??????????????? | | ?# #??# !!!##### %+* #??????????????? | | ?# #??# =%[%+[%![! # #??????????????? | | ?# #??# % !!=##### # #??????????????? | | ##+#### *=*#???# #################???? | | # ""%#######+#######?# #???? | | # %= """"## #?# #??## | | *#= """"## #?# ! #??# | | =+% "" ## #?# ! #??# | | [ !#= ## = ####+##+######## | | !* # ## # + + | | *! ############### # ! # ### | | % #?????????????############## # #?# | | [ #??????????################# # #?# | | #??????????#################!! # !#### | | %= #?########### % ###!! " =%=%= | | = #?########;#%%%% ###!! ######+#### | | #?### #%#%!%=[%^^^^^^ ^ ### #??# !# | | #########^^%^^^^^^^% ^ ^ ### [ #### ! # | | ## ;^^^ ^^^^^^* ^ ^ ### ! + + !# | | +^^ %^^!^^!!=^ "@ ^ ### = #### ==! # | | [+^^[^!=^==^!!^ "" ^ ### #??# ==! # | | *+^^^^^^!^=^!!^ ^ ##### ###??# =!! # | | != ##%^^^^=^^^!%*!% ^ ##??###????######## | | *!* ###%;%%!#%#%#!![! ^^^^^ ##????????????????? | | %=%! #?###########%% ##????????????????? | | !=! #?########### ##????????????????? | | % #??????????################????????????????? | | % #??????????################????????????????? | | " !!* ##?###?????###########################??#### | | ""=%! "##""##????# #??# | | "=*! %= % #????# #################### #??# " | | " %%%= #?####+#####??????????????# #??# | | # %[%=%=### #??????????????# #??## | | # ==%%==% # #??????????????# #???# | | ##" %[[%= # "" ################ #???# | | ?#"T =[= "##""" ! + #???# | | ?#"" # #"R ########### #???# | | ?#" =! ###""" #???# ##### | | ?# =%* #""" #???# | | ## !*! # ]#???# ############# | | "" # #???# || ##???????????? | | "" #####+####???# || #????????????? | | "" ### ###### | #????????????? | | T ""# [==%! % #????????????? | +----------------------------------------------------+ Best States ------------- Heat Dissipation 153 Coolant Potential 100 Energy Generation 105 Energy Capacity 1350 Matter Stores 300 Matter Capacity 300 Sight Range 24 Robot Scan Range 20 Terrain Scan Density 10 Jamming Range 12 Power Amplification 20 Additional Mass Support 12 Base Temperature (-) 150 Corruption Block 9 Armor Coverage 1800 Resistance: EM 25 Utility Shielding 66 Weapon Cycling 30 Evasion (%) 40 Targeting Accuracy 12 Core Analysis 8 Recoil Reduction 6 Salvage Targeting 2 Offensive Hacking 20 Defensive Hacking 10 Relay Coupler Types 7 Relay Coupler Value 223 Authchip Count 1 Item Schematics ----------------- Cld. Phase Cannon | -3/Quarantine | Archive Adv. Matter Compressor | -3/Quarantine | Archive Centrium Heavy Armor Plating | -3/Quarantine | Archive Hds. Centrium Wheel | -3/Quarantine | Archive Adv. Variable Charge Gun | -3/Quarantine | Archive Cld. Phase Gun | -3/Section 7 | Archive Adv. EM Disruption Field | -3/Section 7 | Archive Adv. Thermal Defense Suite | -3/Section 7 | Archive Ionic Axe | -3/Garrison | Archive Cld. Field Propulsion Drive | -2/Testing | Archive Nanosword | -2/Testing | Archive Hvy. Tesla Rifle | -2/Testing | Archive Femtoactuators | -2/Testing | Archive Exp. Thermal Shield | -2/Testing | Archive Imp. KE Penetrator | -2/Testing | Archive Prc. Energy Filter | -2/Testing | Archive Coolant Network | -2/Testing | Archive Exp. ECM Suite | -2/Testing | Archive Robot Schematics ------------------ M-13 Machinist | -10/Materials | Hacked H-77 Assassin | -3/Quarantine | Archive T-07 Excavator | -2/Testing | Archive C-55 Analyst | -2/Testing | Archive H-88 Terminator | -2/Testing | Archive S-43 Plague | -2/Testing | Archive Fabricated ------------ Nothing Repaired ---------- Hardlight Generator | 16% | -8/Materials Imp. Heavy Treads | 52% | -7/Factory Enh. Nova Cannon | 50% | -4/Factory Imp. Utility Shielding | 66% | -1/Access Studied --------- Spread Laser | -9/Materials | Hacked Lgt. Treads | -9/Materials | Hacked Adv. Treads | -8/Materials | Hacked Imp. Treads | -8/Materials | Hacked Arm. Treads | -8/Materials | Hacked Missile Launcher | -8/Materials | Hacked Deuterium Engine | -8/Materials | Hacked Scythe | -8/Materials | Hacked Phase Cannon | -7/Factory | Hacked Remote Datajack | -7/Factory | Hacked Imp. Remote Datajack | -5/Factory | Hacked Adv. Remote Datajack | -3/Research | Hacked Biometal Heavy Treads | -3/Research | Hacked Com. HERF Cannon | -3/Quarantine | Hacked Enh. Nova Cannon | -2/Research | Hacked Imp. Heavy Siege Treads | -2/Research | Hacked Alien Tech Used ----------------- Phase Redirector Spacefold Activator Integrated Mediator Integrity Redistributor LRC Insulator LRC Energy Well Achievements -------------- 100k Club A Problem For Future Me Be The Sidekick Drive-By IP Theft May I Have Another? Resistances Are Futile Some Acronyms Are Better Than Others Challenges ------------ None Game ------ Seed DerelictSigixNeutralizer Manual? 0 Play Time 06:51:50 Cumulative 788.5 hours Start 2025.10.26 @ 16:00:21 End 2025.10.28 @ 15:43:56 Sessions 19 Manual Loads 0 Difficulty Rogue Special Mode None Game No. 395 Rogue 395 Adventurer 0 Explorer 0 Win Type 1 Total 66 Types 42/5/6/4/1/1/3/2/1/1 Lore% 92 Gallery% 85 Achievement% 66 Wizard Run 0 Options --------- Layout 0 ASCII 0 Keyboard 1 Movement Numpad Keybinds 0 Fullscreen 2 Font 18/SmallcapsGlow Map View 76x50 Zoom Use 0% Tactical HUD 1 Map Filters NONE Filters NONE Steam 1 RUN: 70fbdfbd-0e37-4130-9465-c66f68d524e8